Cogmind - Beta 11.1 @@@ ROGUE MODE // 2022.04.29 @ 22:15:17 // Winter2019/RPGLIKE Player: Kiks Result: Self-destructed Performance ------------- Evolutions (9) 4500 Regions Visited (33) 6600 Robots Destroyed (663) 3315 Value Destroyed (34860) 34860 Prototype IDs (279) 5580 Alien Tech Used (5) 1000 Bonus (39107) 39107 TOTAL SCORE: 94962 Bonus ------- Triggered High Security 500 High Alert Combat Kills 12239 Follower Combat Kills 1584 Network Hubs Disabled 400 Met Zhirov 300 Met Warlord at Base 500 MAIN.C Attacked Warlord 500 Built Enhanced Grunts 300 Met R17 at Cetus 500 Found Hidden Lab 3000 Met R17 at Research 2000 Pursued by Intercept 1000 Acquired SGEMP 2000 Delivered SGEMP 2000 Destroyed MAIN.C Guards 500 Met MAIN.C 5000 Destroyed MAIN.C Shell 5000 Zhirov Destroyed MAIN.C 3000 Met Warlord at Command 2000 Met Architect 300 Destroyed A8 300 Friendly Fire -3816 Cogmind --------- Core Integrity 422/1400 Matter 17/800 Energy 840/1650 System Corruption 0% Temperature Cool (0) Movement Walking (97) Location -1/Access_0 Parts ------- > --- POWER (2) -------- Vortex Chain Reactor > --- PROPULSION (4) --- High-density Centrium Leg Experimental Biometal Leg Experimental Biometal Leg Experimental Biometal Leg > --- UTILITY (10) ----- Advanced Power Amplifier Experimental Cooling System Experimental Energy Well Experimental Matter Compressor Advanced Kinecellerator Advanced Weapon Cycler Experimental Phase Shifter Advanced Force Field Quantum Router Improved System Restoration Module > --- WEAPON (7) ------- Omega Cannon > --- INVENTORY (4) ---- Experimental System Purifier Enhanced Quantum Rifle Graviton Cannon Peak State ------------ > --- POWER ------------ Vortex Chain Reactor > --- PROPULSION ------- High-density Centrium Leg Experimental Biometal Leg Experimental Biometal Leg Experimental Biometal Leg > --- UTILITY ---------- Advanced Power Amplifier Experimental Cooling System Experimental Energy Well Experimental Matter Compressor Advanced Kinecellerator Advanced Weapon Cycler Experimental Phase Shifter Advanced Force Field Quantum Router Improved System Restoration Module > --- WEAPON ----------- Heavy Quantum Rifle Null Cannon Heavy Hardcell Cannon Graviton Cannon Omega Cannon > --- INVENTORY -------- Centrium Leg Graphene Brace Transdimensional Reconstructor Enhanced Quantum Rifle [Rating: 226] Favorites ----------- Power Vortex Chain Reactor Engine Improved Deuterium Engine Power Core Light Nuclear Core Reactor Vortex Chain Reactor Propulsion Enhanced Biometal Leg Leg Enhanced Biometal Leg Utility Advanced Power Amplifier Device Advanced Power Amplifier Storage Experimental Energy Well Processor Experimental Target Analyzer Hackware Ghost Barrier Protection Centrium Medium Armor Plating Artifact LC Capacitor Weapon Advanced Variable Charge Gun Energy Gun Advanced Variable Charge Gun Energy Cannon Null Cannon Ballistic Gun Assault Rifle Ballistic Cannon Omega Cannon Launcher Heavy Missile Launcher Special Weapon Guided Remote Datajack Build | -11 -10 -10 -9 -9 -8 -7 -7 -7 -7 -6 -6 -6 -6 -6 -6 -5 -5 -5 -5 -4 -4 -4 -4 -4 -3 -3 -3 -3 -2 -2 -1 -1 -1 ------- Run | Scr Mat Min Mat Min Mat Fac Low Low Zio Pro Fac Ext Cet Arc Hub Fac Upp Upp War Pro Fac Upp Upp Zhi Pro Res Arm Lab Res Tes Acc Com Ac0 Slots Evolved 18 | 3 . 1 3 . . . . . . . 4 . . . 1 . . 3 . 1 . . 1 . . . . . . 1 . . . Power 1 | . . . . . . . . . . . . . . . . . . . . 1 . . . . . . . . . . . . . Propulsion 2 | 1 . . 1 . . . . . . . . . . . . . . . . . . . . . . . . . . . . . . Utility 9 | 1 . . 1 . . . . . . . 2 . . . 1 . . 2 . . . . 1 . . . . . . 1 . . . Weapon 6 | 1 . 1 1 . . . . . . . 2 . . . . . . 1 . . . . . . . . . . . . . . . Parts Attached 195 | 5 4 5 9 2 8 10 2 1 . 1 9 5 7 . 7 11 . 2 18 1 . . 2 1 . 3 22 13 4 16 2 24 1 Power 9 | 1 . 1 1 . . 1 . . . . . 1 1 . . 2 . . . 1 . . . . . . . . . . . . . Engine 2 | 1 . . . . . 1 . . . . . . . . . . . . . . . . . . . . . . . . . . . Core 3 | . . 1 1 . . . . . . . . . . . . 1 . . . . . . . . . . . . . . . . . Reactor 4 | . . . . . . . . . . . . 1 1 . . 1 . . . 1 . . . . . . . . . . . . . Propulsion 35 | 2 . 1 1 1 3 1 . . . . 6 1 1 . 3 1 . . 1 . . . . . . . 5 . 1 1 . 6 . Treads . | . . . . . . . . . . . . . . . . . . . . . . . . . . . . . . . . . . Leg 35 | 2 . 1 1 1 3 1 . . . . 6 1 1 . 3 1 . . 1 . . . . . . . 5 . 1 1 . 6 . Wheel . | . . . . . . . . . . . . . . . . . . . . . . . . . . . . . . . . . . Hover . | . . . . . . . . . . . . . . . . . . . . . . . . . . . . . . . . . . Flight . | . . . . . . . . . . . . . . . . . . . . . . . . . . . . . . . . . . Utility 90 | . 2 1 2 . 2 4 1 1 . 1 2 . 1 . 4 4 . 1 17 . . . 1 1 . 2 13 7 2 11 1 9 . Device 65 | . 1 1 . . 2 2 1 . . 1 1 . . . 4 3 . . 13 . . . 1 1 . 1 11 3 1 11 . 7 . Storage 2 | . . . . . . . . . . . . . . . . . . . . . . . . . . . . . . . . 2 . Processor 8 | . 1 . . . . 1 . . . . . . . . . 1 . . 1 . . . . . . 1 1 . 1 . 1 . . Hackware 4 | . . . . . . . . . . . 1 . . . . . . 1 1 . . . . . . . . 1 . . . . . Protection 10 | . . . 2 . . 1 . 1 . . . . 1 . . . . . 2 . . . . . . . 1 2 . . . . . Artifact 1 | . . . . . . . . . . . . . . . . . . . . . . . . . . . . 1 . . . . . Weapon 61 | 2 2 2 5 1 3 4 1 . . . 1 3 4 . . 4 . 1 . . . . 1 . . 1 4 6 1 4 1 9 1 Energy Gun 46 | . 2 2 5 1 3 3 1 . . . 1 3 4 . . 3 . 1 . . . . 1 . . 1 4 4 1 3 1 2 . Energy Cannon 5 | . . . . . . . . . . . . . . . . . . . . . . . . . . . . 1 . 1 . 3 . Ballistic Gun 2 | 2 . . . . . . . . . . . . . . . . . . . . . . . . . . . . . . . . . Ballistic Cannon 5 | . . . . . . . . . . . . . . . . . . . . . . . . . . . . . . . . 4 1 Launcher 2 | . . . . . . 1 . . . . . . . . . 1 . . . . . . . . . . . . . . . . . Special Weapon 1 | . . . . . . . . . . . . . . . . . . . . . . . . . . . . 1 . . . . . Impact Weapon . | . . . . . . . . . . . . . . . . . . . . . . . . . . . . . . . . . . Slashing Weapon . | . . . . . . . . . . . . . . . . . . . . . . . . . . . . . . . . . . Piercing Weapon . | . . . . . . . . . . . . . . . . . . . . . . . . . . . . . . . . . . Special Melee Weapon . | . . . . . . . . . . . . . . . . . . . . . . . . . . . . . . . . . . Unidentified Prototypes 34 | . . . 2 . 1 . . . . . . . 3 . 4 1 . . 6 1 . . . 1 . . 1 10 1 2 . 1 . Parts Lost 2 | . . . . . . 2 . . . . . . . . . . . . . . . . . . . . . . . . . . . Power . | . . . . . . . . . . . . . . . . . . . . . . . . . . . . . . . . . . Propulsion . | . . . . . . . . . . . . . . . . . . . . . . . . . . . . . . . . . . Utility 2 | . . . . . . 2 . . . . . . . . . . . . . . . . . . . . . . . . . . . Weapon . | . . . . . . . . . . . . . . . . . . . . . . . . . . . . . . . . . . Highest Loss Streak 1 | . . . . . . 1 . . . . . . . . . . . . . . . . . . . . . . . . . . . To Critical Strikes . | . . . . . . . . . . . . . . . . . . . . . . . . . . . . . . . . . . Average Slot Usage (%) 93 | . 78 99 88 95 99 96 99 100 100 100 88 99 99 100 100 99 100 91 93 97 95 95 95 95 95 95 94 88 85 85 84 91 78 Engine 2 | . 14 8 . . . 7 9 9 9 9 6 3 . . . . . . . . . . . . . . . . . . . . . Core 1 | . . 4 10 9 9 1 . . . . . . . . . . . . . . . . . . . . . . . . . . . Reactor 2 | . . . . . . . . . . . . 2 6 6 6 5 6 5 5 5 5 5 4 4 4 4 4 4 4 4 4 4 4 Leg 19 | . 28 26 21 26 26 27 27 27 27 27 21 20 20 20 18 18 18 15 15 15 15 15 14 14 14 14 13 13 17 17 17 16 17 Device 22 | . 5 18 21 18 18 14 10 18 18 18 19 20 20 20 26 31 31 26 24 25 25 25 26 28 28 26 27 23 17 19 21 29 30 Processor 1 | . 1 8 . . . 5 7 . . . . . . . . . . . 1 5 5 5 4 4 4 5 4 3 . . 2 2 . Hackware 2 | . . . . . . . . . . . 4 6 6 6 2 . . 4 4 5 5 5 4 4 4 4 4 5 4 4 4 4 4 Protection 5 | . . . 2 9 9 4 9 9 9 9 6 6 5 6 6 6 6 5 4 5 5 5 4 4 4 4 4 4 4 4 4 2 . Energy Gun 32 | . 9 31 31 32 36 30 32 36 36 36 28 39 39 40 38 36 37 34 36 35 35 35 34 33 33 33 32 30 31 30 30 27 . Naked Turns . | . . . . . . . . . . . . . . . . . . . . . . . . . . . . . . . . . . Heaviest Build 144 | 9 12 16 23 26 27 38 38 39 39 40 45 52 62 62 68 69 69 73 103 87 87 87 104 104 104 104 106 114 108 116 98 144 144 Greatest Support 140 | 20 20 20 20 30 40 48 48 48 48 48 58 65 73 73 85 90 90 90 90 90 90 90 90 90 90 105 110 110 135 135 135 140 136 Greatest Overweight (x) 1 | 1 . . 1 1 . . . . . . . . . . 1 . . . 1 . . . 1 1 1 1 1 1 . . . 1 1 Average Overweight (x) . | . . . . . . . . . . . . . . . . . . . . . . . . 1 1 . . . . . . . . Largest Inventory Capacity 4 | 3 3 3 3 3 3 4 4 4 4 4 4 4 4 4 4 4 4 4 4 4 4 4 4 4 4 4 4 4 4 4 4 4 4 Average Capacity 3 | 2 3 3 3 3 3 3 4 4 4 4 4 4 4 4 4 4 4 4 4 4 4 4 4 4 4 4 4 4 4 4 4 4 4 Most Carried 4 | 1 3 3 3 3 3 4 4 4 3 2 3 4 4 4 4 4 2 3 4 4 2 2 2 4 4 4 4 4 4 4 2 4 3 Average Carried 2 | . 2 2 2 2 2 3 4 3 3 . . 2 3 3 2 1 2 2 3 3 2 2 2 2 4 3 3 4 4 3 2 3 2 Final Capacity 4 | 3 3 3 3 3 3 4 4 4 4 4 4 4 4 4 4 4 4 4 4 4 4 4 4 4 4 4 4 4 4 4 4 4 4 Final Carried 4 | 1 3 1 1 3 2 4 4 3 3 . 1 3 4 3 2 2 2 3 4 2 2 2 2 4 4 4 4 4 4 4 2 2 3 Class Distribution -------------------- 34% | Scavenger-Executioner 22% | Hacker-Executioner 21% | Gunner 10% | Scavenger-Gunner 3% | Mutant 3% | Derelict-Executioner Dominant Class ---------------- Mutant | -10/Materials Mutant | -10/Mines Scavenger-Gunner | -9/Materials Scavenger-Gunner | -9/Mines Gunner | -8/Materials Gunner | -7/Factory Gunner | -7/Lower Caves Gunner | -7/Lower Caves Gunner | -7/Zion Gunner | -6/Proximity Caves Gunner | -6/Factory Derelict-Executioner | -6/Extension Scavenger-Executioner | -6/Cetus Scavenger-Executioner | -6/Archives Scavenger-Executioner | -6/Hub_04(d) Scavenger-Executioner | -5/Factory Scavenger-Executioner | -5/Upper Caves Scavenger-Executioner | -5/Upper Caves Scavenger-Executioner | -5/Warlord Scavenger-Executioner | -4/Proximity Caves Scavenger-Executioner | -4/Factory Scavenger-Executioner | -4/Upper Caves Scavenger-Executioner | -4/Upper Caves Scavenger-Executioner | -4/Zhirov Scavenger-Executioner | -3/Proximity Caves Scavenger-Executioner | -3/Research Hacker-Executioner | -3/Armory Hacker-Executioner | -3/Lab Hacker-Executioner | -2/Research Hacker-Executioner | -2/Testing Hacker-Executioner | -1/Access Hacker-Executioner | -1/Command Hacker-Executioner | -1/Access_0 Resources | -11 -10 -10 -9 -9 -8 -7 -7 -7 -7 -6 -6 -6 -6 -6 -6 -5 -5 -5 -5 -4 -4 -4 -4 -4 -3 -3 -3 -3 -2 -2 -1 -1 -1 ----------- Run | Scr Mat Min Mat Min Mat Fac Low Low Zio Pro Fac Ext Cet Arc Hub Fac Upp Upp War Pro Fac Upp Upp Zhi Pro Res Arm Lab Res Tes Acc Com Ac0 Matter Collected 3177 | 256 222 60 90 35 89 109 30 84 . 10 80 60 80 . 99 119 . 20 180 10 . . 20 20 . 30 220 . 125 77 10 628 414 Remotely . | . . . . . . . . . . . . . . . . . . . . . . . . . . . . . . . . . . Salvage Created 35052 | . 453 284 1451 353 1269 729 173 227 . 133 1256 3247 389 . 892 3539 522 503 . 782 936 812 . 507 1235 466 3162 . 1524 3827 233 6084 64 Parts 1416 | . 27 17 90 13 88 31 . 15 . 4 43 116 15 . 28 140 11 18 . 28 28 37 . 3 35 17 129 1 69 153 51 208 1 Haulers Intercepted 14 | . 2 . 5 . 2 1 . . . . 3 . . . . . . . . . 1 . . . . . . . . . . . . Recyclers Shooed 5 | . 1 1 . . . . . . . . 1 1 . . . . . . . . . . . . . 1 . . . . . . . Parts Field Recycled . | . . . . . . . . . . . . . . . . . . . . . . . . . . . . . . . . . . Retrieved Matter . | . . . . . . . . . . . . . . . . . . . . . . . . . . . . . . . . . . Parts Self-Destructed 188 | . . . . . . . 2 15 . 4 . . . . . . 13 20 34 26 . 37 . 2 35 . . . . . . . . Prevented 5 | . . . . . . . 1 . . . . . . . . . 2 . 2 . . . . . . . . . . . . . . Kills | -11 -10 -10 -9 -9 -8 -7 -7 -7 -7 -6 -6 -6 -6 -6 -6 -5 -5 -5 -5 -4 -4 -4 -4 -4 -3 -3 -3 -3 -2 -2 -1 -1 -1 ------- Run | Scr Mat Min Mat Min Mat Fac Low Low Zio Pro Fac Ext Cet Arc Hub Fac Upp Upp War Pro Fac Upp Upp Zhi Pro Res Arm Lab Res Tes Acc Com Ac0 Combat Hostiles Destroyed 556 | . 9 5 30 4 31 14 . 7 . 5 21 58 11 1 4 53 6 10 . 13 10 17 . . 16 6 53 1 22 64 9 73 3 Guns 495 | . 9 5 26 3 31 12 . 6 . 4 21 55 9 1 2 47 6 10 . 13 9 16 . . 14 5 43 . 19 54 7 68 . Cannons 4 | . . . . . . . . . . . . . . . . . . . . . . . . . . . . . . . . 1 3 AOE 2 | . . . 1 . . . . . . . . . . . . . . . . . . . . . . . . . . 1 . . . Classes Destroyed 25 | . 6 2 3 . 3 2 . 1 . . . 1 . . . 2 . . . . . . . . . . 1 . 1 2 . 1 . Worker 17 | . 1 . 2 . 3 3 . . . . 2 . . . 2 2 . . . . . . . . . . . . . 1 1 . . Builder 16 | . . 1 1 1 1 . . . . . . 1 . . . 5 . . . . 1 . . . . 2 . . . 3 . . . Tunneler 4 | . . . . . . 1 . . . . . . . . . 2 . . . . . . . . . . . . 1 . . . . Hauler 14 | . 2 . 5 . 2 1 . . . . 3 . . . . . . . . . 1 . . . . . . . . . . . . Recycler 14 | . 2 1 2 2 . 1 . . . . 1 2 . . . 1 . . . . 2 . . . . . . . . . . . . Mechanic 6 | . . . 1 . 2 . . . . . . . . . . 2 . . . . . . . . . . . . . . . 1 . Operator 10 | . . . 1 . 1 . . . . . 2 2 . . 1 2 . . . . . . . . . . . . . . . 1 . Watcher 40 | . 1 . 5 . 4 2 . . . . 3 1 . . . 7 . . . . 2 . . . . . 5 . 3 2 1 4 . Swarmer 102 | . 3 . 11 1 11 3 . 1 . 4 4 4 . . . 3 . 4 . 3 4 9 . . 6 . 10 . 4 5 . 12 . Saboteur 5 | . . . . . . . . . . . . 1 . . . . . . . . . . . . . . 1 . . 2 . 1 . Grunt 203 | . 6 4 10 3 11 7 . 1 . . 9 11 4 . . 27 4 5 . 8 2 2 . . 6 2 15 . 4 27 3 32 . Brawler 15 | . . . . . 1 2 . . . . . . . . . 1 . 1 . . . 1 . . . . 1 . . 4 1 3 . Duelist 18 | . . . . . 1 . . . . . . 2 1 . . 2 . . . . . 1 . . . . 7 . . 1 . 3 . Protector 2 | . . . . . . . . . . . . . . . . . . . . . . . . . . . 1 . . . . 1 . Sentry 60 | . . . 9 . 6 1 . 1 . . 4 13 . 1 1 4 1 . . 1 2 1 . . 1 1 4 . 4 4 1 . . Demolisher 1 | . . 1 . . . . . . . . . . . . . . . . . . . . . . . . . . . . . . . Specialist 4 | . . . . . . . . . . . . . . . . 2 . . . . . . . . . . 2 . . . . . . Hunter 37 | . . . . . 1 . . 2 . . 1 4 2 . . 2 . . . . 2 2 . . 2 2 4 . 6 2 . 5 . Programmer 43 | . . . . . . 1 . 1 . . 3 . . . . 10 . . . 1 . . . . . . 6 . 2 7 2 10 . Heavy 2 | . . . . . . . . . . . . . . . . 1 . . . . . . . . . . 1 . . . . . . Behemoth 12 | . . . . . . . . 1 . 1 . 2 . . . 1 1 . . . . 1 . . 1 1 1 . . . 2 . . Cetus Guard 4 | . . . . . . . . . . . . . 4 . . . . . . . . . . . . . . . . . . . . M Guard 2 | . . . . . . . . . . . . . . . . . . . . . . . . . . . . . . . . 2 . Enhanced Grunt 6 | . . . . . . . . . . . . . . . 4 . . . . . . . . . . . . . . . . . 2 Lightning 3 | . . . . . . . . . . . . . . . 3 . . . . . . . . . . . . . . . . . . Tracker 5 | . . . . . . . . . . . . . . . . . . . . . . . . . . . . . . 5 . . . Combat Programmer 6 | . . . . . . . . . . . . . . . . . . . . . . . . . . . . . . 4 . 2 . Investigator 1 | . . . . . . . . . . . . . . . . . . . . . . . . . . . . . . . . 1 . Striker 3 | . . . . . . . . . . . . . . . . . . . . . . . . . . . . . . 2 . 1 . Executioner 2 | . . . . . . . . . . . . . . . . . . . . . . . . . . . . . 2 . . . . Alpha 7 1 | . . . . . . . . . . . . . . . . . . . . . . . . . . . . . . 1 . . . Thug 11 | . . . . . . . . . . . . 10 . . 1 . . . . . . . . . . . . . . . . . . Savage 4 | . . . . . . . . . . . . 4 . . . . . . . . . . . . . . . . . . . . . Butcher 2 | . . . . . . . . . . . . 2 . . . . . . . . . . . . . . . . . . . . . Guerrilla 6 | . . . . . . . . . . . . 5 . . 1 . . . . . . . . . . . . . . . . . . Best Kill Streak 16 | . 6 3 9 2 7 5 . 3 . 4 5 16 3 1 2 9 4 4 . 7 9 9 . . 5 2 8 1 5 8 5 12 3 Combat Bots Only 13 | . 5 2 5 2 7 4 . 3 . 4 4 12 3 1 2 8 4 4 . 7 4 9 . . 5 2 8 1 5 8 5 13 3 Max Kills in Single Turn 4 | . 2 1 2 1 2 1 . 1 . 1 2 3 2 1 3 4 1 2 . 3 2 3 . . 2 2 3 1 2 3 2 3 1 Gunslinging 2 | . 1 . . . 1 . . . . . . 2 1 . . 2 . 1 . 2 . 2 . . 1 1 2 . 1 2 1 2 . Exploded 1 | . . . 1 . . . . . . . . . . . . . . . . . . . . . . . . . . 1 . . . Melee . | . . . . . . . . . . . . . . . . . . . . . . . . . . . . . . . . . . Uniques/NPCs Destroyed 4 | . . . . . . . . . . . . . 1 . . . . . . . . . . . . . . 1 . . . 1 1 A7 (-6/Cetus) A5 (-3/Lab) MAIN.C Shell (-1/Command) A8 (-1/Access_0) Combat | -11 -10 -10 -9 -9 -8 -7 -7 -7 -7 -6 -6 -6 -6 -6 -6 -5 -5 -5 -5 -4 -4 -4 -4 -4 -3 -3 -3 -3 -2 -2 -1 -1 -1 -------- Run | Scr Mat Min Mat Min Mat Fac Low Low Zio Pro Fac Ext Cet Arc Hub Fac Upp Upp War Pro Fac Upp Upp Zhi Pro Res Arm Lab Res Tes Acc Com Ac0 Damage Taken 21648 | . 477 261 1310 70 896 597 . 417 . 527 680 646 356 182 468 2081 278 172 . 374 245 412 . . 394 247 993 25 825 3607 854 2977 1277 Core 15818 | . 388 216 1050 58 619 429 . 302 . 389 475 451 273 107 345 1504 188 115 . 273 178 320 . . 268 181 703 19 599 2550 539 2248 1031 Absorbed by Shields 4353 | . . . . . . . . . . . . 64 185 . . . . . . . . . . . 377 235 999 26 . . . 1159 1308 Redirected to Core 13703 | . 280 155 711 24 511 403 . 267 . 363 412 407 223 107 284 1330 165 99 . 273 166 307 . . 234 165 669 19 516 2329 490 1934 860 Regen/Repaired (Parts) 55 | . . . . . . . . . 55 . . . . . . . . . . . . . . . . . . . . . . . . Core Remaining (%) 92 | 100 . 100 . 100 100 . . . . 48 . . . . 97 . . . . 100 . . . . 89 . . 92 . 97 . . . Volleys Fired 937 | 1 39 14 83 11 53 38 3 8 2 8 40 55 19 4 12 90 9 8 2 12 17 14 . 4 16 12 71 13 32 79 19 116 33 Largest 7 | 2 2 3 3 4 4 3 4 4 4 4 5 6 6 6 6 6 6 6 7 7 7 7 . 7 7 7 7 7 7 7 7 7 4 Hottest 564 | 40 130 195 195 233 233 240 315 315 315 315 395 470 465 465 465 465 465 465 534 534 534 534 . 559 559 559 559 539 529 529 529 564 330 Shots Fired 4783 | 2 78 32 249 39 203 114 9 33 8 32 164 319 104 18 71 491 54 48 8 84 114 98 . 28 106 75 484 55 209 530 111 731 82 Gun 4671 | 2 78 32 249 39 203 114 9 33 8 32 164 319 104 18 71 491 54 48 8 84 114 98 . 28 106 75 484 52 209 530 111 704 . Cannon 112 | . . . . . . . . . . . . . . . . . . . . . . . . . . . . 3 . . . 27 82 Launcher . | . . . . . . . . . . . . . . . . . . . . . . . . . . . . . . . . . . Special . | . . . . . . . . . . . . . . . . . . . . . . . . . . . . . . . . . . Kinetic 148 | 2 64 . . . . . . . . . . . . . . . . . . . . . . . . . . . . . . . 82 Thermal 4635 | . 14 32 249 39 203 114 9 33 8 32 164 319 104 18 71 491 54 48 8 84 114 98 . 28 106 75 484 55 209 530 111 731 . Explosive . | . . . . . . . . . . . . . . . . . . . . . . . . . . . . . . . . . . Electromagnetic . | . . . . . . . . . . . . . . . . . . . . . . . . . . . . . . . . . . Robot Hit Streak 75 | 1 8 9 9 7 36 55 11 22 . 16 41 75 52 67 21 59 27 25 13 32 27 36 . 21 29 15 37 22 20 36 40 47 14 Robot Miss Streak 6 | 1 4 1 4 1 2 1 1 2 . 3 6 2 2 1 1 2 1 2 . 1 2 2 . . 1 1 2 2 2 2 1 2 3 Penetration Max . | . . . . . . . . . . . . . . . . . . . . . . . . . . . . . . . . . . Secondary Targets 147 | . 4 2 4 . 10 1 . . . 1 . 9 3 . 1 11 3 4 . 6 . 5 . . 2 1 14 . 5 26 4 31 . Max Gunslinging Chain 2 | . 1 1 1 . 1 1 . . . 1 . 2 1 . 1 2 1 1 . 2 . 2 . . 1 1 2 . 1 2 2 2 . Shots Hit Robots 3324 | 1 53 23 134 23 137 91 3 31 . 28 145 268 95 16 40 337 41 31 7 61 69 61 . 19 63 44 302 25 125 383 83 527 58 Core Hits 1368 | . 25 11 53 8 68 36 3 16 . 12 95 168 36 3 23 127 16 16 1 27 26 25 . 8 29 17 110 4 48 120 26 201 10 Critical Kills 1 | . . . . . . . . . . . . . . . . . . . . . . . . . . . . . . . . 1 . Critical Parts Destroyed . | . . . . . . . . . . . . . . . . . . . . . . . . . . . . . . . . . . Critical Strikes 129 | . . 1 11 2 10 7 . . . . 1 3 5 3 3 27 . . . 6 10 10 . 1 11 1 9 . . . . 1 7 Burn 121 | . . 1 11 2 10 7 . . . . 1 3 5 3 3 27 . . . 6 10 10 . 1 11 1 9 . . . . . . Meltdown 1 | . . . . . . . . . . . . . . . . . . . . . . . . . . . . . . . . 1 . Blast 7 | . . . . . . . . . . . . . . . . . . . . . . . . . . . . . . . . . 7 Melee Attacks . | . . . . . . . . . . . . . . . . . . . . . . . . . . . . . . . . . . Impact . | . . . . . . . . . . . . . . . . . . . . . . . . . . . . . . . . . . Slashing . | . . . . . . . . . . . . . . . . . . . . . . . . . . . . . . . . . . Piercing . | . . . . . . . . . . . . . . . . . . . . . . . . . . . . . . . . . . Sneak Attacks . | . . . . . . . . . . . . . . . . . . . . . . . . . . . . . . . . . . Combat Hostiles . | . . . . . . . . . . . . . . . . . . . . . . . . . . . . . . . . . . Follow-up Attacks . | . . . . . . . . . . . . . . . . . . . . . . . . . . . . . . . . . . Damage Inflicted 121909 | 14 771 370 2523 428 2699 1924 39 837 . 813 4005 7024 2976 520 2017 12018 1449 1012 168 2202 2394 1963 . 790 2236 1547 11824 773 5165 17761 3832 24234 5581 Guns 113334 | 14 771 370 2523 428 2699 1924 39 837 . 813 4005 7024 2976 520 1372 12018 1449 1012 168 2202 2394 1963 . 790 2236 1546 11824 773 5165 17575 3832 22072 . Cannons 7687 | . . . . . . . . . . . . . . . . . . . . . . . . . . . . . . . . 2106 5581 Explosions 802 | . . . . . . . . . . . . . . . 645 . . . . . . . . . . . . . . 157 . . . Melee . | . . . . . . . . . . . . . . . . . . . . . . . . . . . . . . . . . . Ramming 86 | . . . . . . . . . . . . . . . . . . . . . . . . . . 1 . . . 29 . 56 . Kinetic 6234 | 14 639 . . . . . . . . . . . . . . . . . . . . . . . . . . . . . . . 5581 Thermal 114787 | . 132 370 2523 428 2699 1924 39 837 . 813 4005 7024 2976 520 1372 12018 1449 1012 168 2202 2394 1963 . 790 2236 1546 11824 773 5165 17575 3832 24178 . Explosive . | . . . . . . . . . . . . . . . . . . . . . . . . . . . . . . . . . . Electromagnetic 802 | . . . . . . . . . . . . . . . 645 . . . . . . . . . . . . . . 157 . . . Impact . | . . . . . . . . . . . . . . . . . . . . . . . . . . . . . . . . . . Slashing . | . . . . . . . . . . . . . . . . . . . . . . . . . . . . . . . . . . Piercing . | . . . . . . . . . . . . . . . . . . . . . . . . . . . . . . . . . . Highest Corruption 5 | . . . 2 2 . 5 5 5 5 . . 1 1 1 3 1 . . . . . . . . . . 1 . . 5 1 2 1 Average Corruption 2 | . . . 2 2 . 4 5 5 5 . . 1 1 1 2 1 . . . . . . . . . . 1 . . 1 1 1 1 Corruption Purged 25 | . . . . . . 2 . . . . . . . . . 2 . . . . . . . . . . 1 . . 14 . 5 1 Corruption Blocked 62 | . . . . . . . . . . . . . . . . . . . . . . . . . . . . . 2 40 . 20 . Effects 66 | . . . 3 4 . 5 12 15 1 . . 1 5 1 9 2 . . . . . . . . . . . . . 3 2 3 . Message Errors 15 | . . . . . . . 3 3 . . . . 2 . 3 1 . . . . . . . . . . . . . 2 . 1 . Matter Fused 21 | . . . 2 1 . 2 2 7 . . . . 1 1 3 1 . . . . . . . . . . . . . . 1 . . Heat Flow Errors 8 | . . . . 2 . 1 2 2 . . . 1 . . . . . . . . . . . . . . . . . . . . . Energy Discharges 9 | . . . . 1 . 1 2 1 . . . . . . 2 . . . . . . . . . . . . . . . 1 1 . Data Loss (minor) 7 | . . . 1 . . . 1 1 . . . . 2 . . . . . . . . . . . . . . . . 1 . 1 . Data Loss (major) 2 | . . . . . . . 1 . 1 . . . . . . . . . . . . . . . . . . . . . . . . Misfires 1 | . . . . . . . . 1 . . . . . . . . . . . . . . . . . . . . . . . . . Alerts 1 | . . . . . . 1 . . . . . . . . . . . . . . . . . . . . . . . . . . . Weapon Failures 2 | . . . . . . . 1 . . . . . . . 1 . . . . . . . . . . . . . . . . . . Overload Shots 1 | . . . . . . . . . . . . . . . . . . . 1 . . . . . . . . . . . . . . Effects 1 | . . . . . . . . . . . . . . . . . . . 1 . . . . . . . . . . . . . . Short Circuit 1 | . . . . . . . . . . . . . . . . . . . 1 . . . . . . . . . . . . . . Overflow Damage 517 | . . . . . . . . . . . . . . . . . . . . . . . . . . . . . . 4 . 314 199 Projectiles 513 | . . . . . . . . . . . . . . . . . . . . . . . . . . . . . . . . 314 199 Explosions . | . . . . . . . . . . . . . . . . . . . . . . . . . . . . . . . . . . Melee 4 | . . . . . . . . . . . . . . . . . . . . . . . . . . . . . . 4 . . . Knockbacks 25 | . . . . . . . . . . . . . . . . . . . . . . . . . . . . . . . . 1 24 Impact 1 | . . . . . . . . . . . . . . . . . . . . . . . . . . . . . . . . 1 . Kinetic 24 | . . . . . . . . . . . . . . . . . . . . . . . . . . . . . . . . . 24 Secondary . | . . . . . . . . . . . . . . . . . . . . . . . . . . . . . . . . . . Self-Inflicted Damage 181 | . . . . . . . . . . . . . . . 132 . . . . . . . . . . . . . . 49 . . . Shots 4 | . . . . . . . . . . . . . . . 2 . . . . . . . . . . . . . . 2 . . . Rammed . | . . . . . . . . . . . . . . . . . . . . . . . . . . . . . . . . . . Targets Rammed 8 | . . . . . . . . . . . . . . . . . . . . . . . . . . 1 . . . 1 . 6 . Kicked 8 | . . . . . . . . . . . . . . . . . . . . . . . . . . 1 . . . 1 . 6 . Crushed . | . . . . . . . . . . . . . . . . . . . . . . . . . . . . . . . . . . Highest Temperature 494 | . 135 255 385 329 369 300 202 360 152 494 8 121 8 36 . 66 103 42 168 146 160 212 . . 2 2 405 359 288 381 165 401 . Average Temperature 90 | . 35 74 85 103 116 97 82 192 76 244 8 9 5 29 . 19 44 15 74 53 50 55 . . 2 2 125 111 98 117 63 101 . Received Heat Transfer 2930 | . 222 51 423 33 315 87 . 42 . 48 280 129 16 45 . 273 84 36 . 90 9 18 . . 34 14 77 . 45 372 27 160 . Effects 13 | . . . 2 . 2 . . 2 . 1 . . . . . . . . . . . . . . . . 2 . . . . 4 . Shutdowns 1 | . . . . . . . . . . 1 . . . . . . . . . . . . . . . . . . . . . . . Energy Bleed 1 | . . . . . 1 . . . . . . . . . . . . . . . . . . . . . . . . . . . . Interference 8 | . . . . . 1 . . 2 . . . . . . . . . . . . . . . . . . 2 . . . . 3 . Matter Decay 1 | . . . . . . . . . . . . . . . . . . . . . . . . . . . . . . . . 1 . Short Circuit 1 | . . . 1 . . . . . . . . . . . . . . . . . . . . . . . . . . . . . . Damage (minor) 1 | . . . 1 . . . . . . . . . . . . . . . . . . . . . . . . . . . . . . Siege Activations . | . . . . . . . . . . . . . . . . . . . . . . . . . . . . . . . . . . Robots Corrupted 3 | . . . . . . . . . . . . . . . 3 . . . . . . . . . . . . . . . . . . Combat Hostiles . | . . . . . . . . . . . . . . . . . . . . . . . . . . . . . . . . . . Parts Fried 17 | . . . . . . . . . . . . 3 . . 10 . . . . . . . . . . . . . 2 2 . . . Impact Corruptions 1 | . . . . . . . . . . . . . . . . . . . . . . . . . . . . . . 1 . . . Robots Melted 57 | . . . 3 1 . 2 . 1 . 1 . 4 2 . 2 6 . . . . 1 1 . . 2 1 10 1 3 9 2 5 . Combat Hostiles 55 | . . . 3 1 . 2 . 1 . 1 . 2 2 . 2 6 . . . . 1 1 . . 2 1 10 1 3 9 2 5 . Parts Melted 419 | . 1 . 24 1 13 13 . 3 . 5 16 31 9 4 8 56 7 4 . 11 17 11 . 1 10 5 56 5 21 51 5 31 . Heat Transferred 133220 | . 296 925 6068 999 5883 4014 75 1473 . 1360 6814 12000 4350 892 1581 16105 1634 1214 66 3009 3662 3218 . 742 3353 1843 11970 703 4662 14166 2783 17360 . Parts Sabotaged 5 | . . . . . . . . . . . . . . . . . . . . . . . . . . . 2 . . 2 . 1 . Parts Stolen . | . . . . . . . . . . . . . . . . . . . . . . . . . . . . . . . . . . Parts Stripped . | . . . . . . . . . . . . . . . . . . . . . . . . . . . . . . . . . . Power Chain Reactions 1 | . . . . . . . . . . . . . . . . . . . . . 1 . . . . . . . . . . . . Missiles Intercepted . | . . . . . . . . . . . . . . . . . . . . . . . . . . . . . . . . . . Alert | -11 -10 -10 -9 -9 -8 -7 -7 -7 -7 -6 -6 -6 -6 -6 -6 -5 -5 -5 -5 -4 -4 -4 -4 -4 -3 -3 -3 -3 -2 -2 -1 -1 -1 ------- Run | Scr Mat Min Mat Min Mat Fac Low Low Zio Pro Fac Ext Cet Arc Hub Fac Upp Upp War Pro Fac Upp Upp Zhi Pro Res Arm Lab Res Tes Acc Com Ac0 Peak Influence 2652 | . 184 154 555 543 866 613 . . . . 382 1865 1565 846 668 1246 . . . . 593 . . . . 157 793 . 607 1215 1393 2652 . Initial 960 | . . 9 59 216 211 393 . . . . . 132 960 626 296 86 . . . . 53 . . . . 6 18 . . 341 724 777 . Average 596 | . 68 67 350 467 610 467 . . . . 203 989 1305 790 351 496 . . . . 281 . . . . 35 436 . 334 870 1161 1520 . Maximum Alert Level 5 | . . . 2 2 3 2 . . . . 1 5 4 3 2 4 . . . . 2 . . . . . 3 . 2 4 4 5 . Low Security (%) 23 | 100 100 100 17 . . . . . . . 48 5 . . 26 6 . . . . 19 . . . . 100 16 . 23 . . 26 . Level 1 18 | . . . 36 18 10 21 . . . . 51 5 . . 30 39 . . . . 44 . . . . . 14 . 34 5 . . . Level 2 28 | . . . 45 81 58 78 . . . . . 23 . 25 42 32 . . . . 36 . . . . . 63 . 41 19 . . . Level 3 13 | . . . . . 30 . . . . . . 17 37 74 . 17 . . . . . . . . . . 5 . . 54 20 8 . Level 4 13 | . . . . . . . . . . . . 32 62 . . 3 . . . . . . . . . . . . . 20 79 44 . Level 5 . | . . . . . . . . . . . . 14 . . . . . . . . . . . . . . . . . . . . . High Security 2 | . . . . . . . . . . . . . . . . . . . . . . . . . . . . . . . . 19 . Max Security . | . . . . . . . . . . . . . . . . . . . . . . . . . . . . . . . . . . Squads Dispatched 107 | . 1 . 2 . 3 1 . . . . 5 4 1 . . 16 . . . . 2 . . . . 8 7 . 2 24 8 23 . Investigation 12 | . . . 1 . . . . . . . 1 . 1 . . 2 . . . . . . . . . 3 2 . . . . 2 . Extermination 18 | . . . . . . 1 . . . . 3 . . . . 6 . . . . . . . . . . 2 . . 3 1 2 . Reinforcement 24 | . 1 . 1 . 1 . . . . . 1 1 . . . 3 . . . . . . . . . 5 2 . 2 3 3 1 . Assault 31 | . . . . . 2 . . . . . . 3 . . . 2 . . . . 1 . . . . . 1 . . 4 . 18 . Garrison 12 | . . . . . . . . . . . . . . . . 3 . . . . 1 . . . . . . . . 7 1 . . Intercept 10 | . . . . . . . . . . . . . . . . . . . . . . . . . . . . . . 7 3 . . Searches Triggered . | . . . . . . . . . . . . . . . . . . . . . . . . . . . . . . . . . . Construction Impeded 2 | . . . . . . . . . . . . . . . . 1 . . . . . . . . . . . . . . 1 . . Haulers Reinforced 3 | . . . . . . . . . . . 1 . . . . . . . . . . . . . . 2 . . . . . . . Active Scanning Responses . | . . . . . . . . . . . . . . . . . . . . . . . . . . . . . . . . . . Cargo Convoy Interrupts . | . . . . . . . . . . . . . . . . . . . . . . . . . . . . . . . . . . Stealth | -11 -10 -10 -9 -9 -8 -7 -7 -7 -7 -6 -6 -6 -6 -6 -6 -5 -5 -5 -5 -4 -4 -4 -4 -4 -3 -3 -3 -3 -2 -2 -1 -1 -1 --------- Run | Scr Mat Min Mat Min Mat Fac Low Low Zio Pro Fac Ext Cet Arc Hub Fac Upp Upp War Pro Fac Upp Upp Zhi Pro Res Arm Lab Res Tes Acc Com Ac0 Distress Signals 42 | . . . 2 . 1 1 . . . . . 2 2 . 2 1 . . . . 1 . . . . 9 2 . 9 6 1 3 . Communications Jammed . | . . . . . . . . . . . . . . . . . . . . . . . . . . . . . . . . . . Distress Signals . | . . . . . . . . . . . . . . . . . . . . . . . . . . . . . . . . . . Times Spotted 728 | . 11 5 39 12 41 17 . 7 . 5 30 52 22 3 8 74 6 9 4 13 11 15 . . 16 8 58 1 27 77 18 131 8 Peak Tracking Total 22 | . 4 2 5 4 5 3 . 3 . 4 4 9 5 2 4 7 4 4 2 4 4 5 . . 5 2 8 1 5 11 5 22 4 Tactical Retreats 24 | . . . . 2 1 1 . . . . 1 1 . . . 5 . . . . . . . . . . 1 . 1 4 1 6 . Traps | -11 -10 -10 -9 -9 -8 -7 -7 -7 -7 -6 -6 -6 -6 -6 -6 -5 -5 -5 -5 -4 -4 -4 -4 -4 -3 -3 -3 -3 -2 -2 -1 -1 -1 ------- Run | Scr Mat Min Mat Min Mat Fac Low Low Zio Pro Fac Ext Cet Arc Hub Fac Upp Upp War Pro Fac Upp Upp Zhi Pro Res Arm Lab Res Tes Acc Com Ac0 Traps Triggered 18 | . 1 . 2 . 4 . . . . . . . . . . 1 . . . . . . . . . 1 6 . . 1 . 2 . Indirectly . | . . . . . . . . . . . . . . . . . . . . . . . . . . . . . . . . . . Trap Hack Attempts . | . . . . . . . . . . . . . . . . . . . . . . . . . . . . . . . . . . Triggered . | . . . . . . . . . . . . . . . . . . . . . . . . . . . . . . . . . . Disarmed . | . . . . . . . . . . . . . . . . . . . . . . . . . . . . . . . . . . Reprogrammed . | . . . . . . . . . . . . . . . . . . . . . . . . . . . . . . . . . . Reused . | . . . . . . . . . . . . . . . . . . . . . . . . . . . . . . . . . . Traps Extracted . | . . . . . . . . . . . . . . . . . . . . . . . . . . . . . . . . . . Installed . | . . . . . . . . . . . . . . . . . . . . . . . . . . . . . . . . . . Triggered 14 | . . . . . . . 1 . . . . . . . . . 2 . 11 . . . . . . . . . . . . . . Machines | -11 -10 -10 -9 -9 -8 -7 -7 -7 -7 -6 -6 -6 -6 -6 -6 -5 -5 -5 -5 -4 -4 -4 -4 -4 -3 -3 -3 -3 -2 -2 -1 -1 -1 ---------- Run | Scr Mat Min Mat Min Mat Fac Low Low Zio Pro Fac Ext Cet Arc Hub Fac Upp Upp War Pro Fac Upp Upp Zhi Pro Res Arm Lab Res Tes Acc Com Ac0 Machines Disabled 87 | . . . 6 3 1 . . . . . . 4 . 2 20 12 . . 1 . 6 1 . . . . 8 4 . 10 1 8 . Max in Single Turn 15 | . . . 1 1 1 . . . . . . 1 . 1 15 2 . . 1 . 3 1 . . . . 1 1 . 2 . 1 . Garrison Access 7 | . . . . . 1 . . . . . 1 . . . 1 . . . . . . . . . . 3 . . . . 1 . . Network Hub 2 | . . . . . . . . . . . . . . . 2 . . . . . . . . . . . . . . . . . . Machines Sabotaged . | . . . . . . . . . . . . . . . . . . . . . . . . . . . . . . . . . . Garrisons Compromised . | . . . . . . . . . . . . . . . . . . . . . . . . . . . . . . . . . . Overloaded Fab Kills . | . . . . . . . . . . . . . . . . . . . . . . . . . . . . . . . . . . Hacking | -11 -10 -10 -9 -9 -8 -7 -7 -7 -7 -6 -6 -6 -6 -6 -6 -5 -5 -5 -5 -4 -4 -4 -4 -4 -3 -3 -3 -3 -2 -2 -1 -1 -1 --------- Run | Scr Mat Min Mat Min Mat Fac Low Low Zio Pro Fac Ext Cet Arc Hub Fac Upp Upp War Pro Fac Upp Upp Zhi Pro Res Arm Lab Res Tes Acc Com Ac0 Machines Accessed 86 | . 4 . 5 1 6 2 . . . . 8 8 1 . 5 9 . 1 2 . 1 . . 5 . 2 4 2 2 7 6 5 . Terminals 67 | . 4 . 5 . 5 2 . . . . 7 8 1 . 4 8 . . . . 1 . . . . . 4 . 2 6 5 5 . Fabricators . | . . . . . . . . . . . . . . . . . . . . . . . . . . . . . . . . . . Repair Stations 1 | . . . . . . . . . . . . . . . . 1 . . . . . . . . . . . . . . . . . Recycling Units . | . . . . . . . . . . . . . . . . . . . . . . . . . . . . . . . . . . Scanalyzers . | . . . . . . . . . . . . . . . . . . . . . . . . . . . . . . . . . . Garrison Access 7 | . . . . . 1 . . . . . 1 . . . 1 . . . . . . . . . . 2 . . . 1 1 . . Total Hacks 319 | . 13 . 12 1 17 4 . . . . 21 20 5 . 17 33 . 1 2 . 9 . . 18 . 4 40 2 17 49 15 19 . Successful 126 | . 5 . 5 1 8 1 . . . . 7 8 . . 10 11 . 1 2 . 1 . . 18 . 2 11 2 3 17 7 6 . Failed 193 | . 8 . 7 . 9 3 . . . . 14 12 5 . 7 22 . . . . 8 . . . . 2 29 . 14 32 8 13 . Catastrophic 47 | . 1 . 2 . 1 1 . . . . 2 2 2 . 1 7 . . . . 3 . . . . . 11 . 6 5 . 3 . Database Lockouts . | . . . . . . . . . . . . . . . . . . . . . . . . . . . . . . . . . . Manual 181 | . 8 . 12 . 17 4 . . . . 16 3 1 . 9 20 . . 1 . 9 . . . . . 21 . 17 24 8 11 . Terminals 278 | . 13 . 12 . 16 4 . . . . 18 20 5 . 16 29 . . . . 9 . . . . . 40 . 17 47 13 19 . Fabricators . | . . . . . . . . . . . . . . . . . . . . . . . . . . . . . . . . . . Repair Stations 4 | . . . . . . . . . . . . . . . . 4 . . . . . . . . . . . . . . . . . Recycling Units . | . . . . . . . . . . . . . . . . . . . . . . . . . . . . . . . . . . Scanalyzers . | . . . . . . . . . . . . . . . . . . . . . . . . . . . . . . . . . . Garrison Access 13 | . . . . . 1 . . . . . 3 . . . 1 . . . . . . . . . . 4 . . . 2 2 . . Terminal Hacks 73 | . 1 . 1 1 2 . . . . . 1 7 . . 6 4 . 1 2 . . . . 18 . . 7 2 1 11 4 4 . Record 9 | . . . . . . . . . . . . . . . . . . . . . . . . 6 . . . 1 . . . 2 . Part Schematic 4 | . . . . . . . . . . . . . . . . . . . . . . . . 4 . . . . . . . . . Robot Analysis 4 | . . . . . . . . . . . . . . . . . . . . . . . . 4 . . . . . . . . . Prototype ID Bank 4 | . . . . . . . . . . . . . . . . . . . . . . . . 4 . . . . . . . . . Open Door 15 | . . . . 1 . . . . . . 1 7 . . . . . 1 2 . . . . . . . . . . . 3 . . Level Access Points 1 | . . . . . . . . . . . . . . . . . . . . . . . . . . . 1 . . . . . . Branch Access Points 4 | . . . . . 2 . . . . . . . . . . 1 . . . . . . . . . . . . 1 . . . . Emergency Access Points 1 | . . . . . . . . . . . . . . . . . . . . . . . . . . . . . . 1 . . . Machine Index 1 | . . . . . . . . . . . . . . . . . . . . . . . . . . . . . . . . 1 . Alert Level 4 | . . . . . . . . . . . . . . . 1 . . . . . . . . . . . 1 . . 1 1 . . Unreport Threat 19 | . 1 . 1 . . . . . . . . . . . 5 2 . . . . . . . . . . 5 . . 5 . . . Locate Traps 1 | . . . . . . . . . . . . . . . . 1 . . . . . . . . . . . . . . . . . Zone Layout 4 | . . . . . . . . . . . . . . . . . . . . . . . . . . . . . . 4 . . . Disengage Seal 1 | . . . . . . . . . . . . . . . . . . . . . . . . . . . . . . . . 1 . Gate Test 138-A 1 | . . . . . . . . . . . . . . . . . . . . . . . . . . . . 1 . . . . . Fabricator Hacks . | . . . . . . . . . . . . . . . . . . . . . . . . . . . . . . . . . . Repair Station Hacks 2 | . . . . . . . . . . . . . . . . 2 . . . . . . . . . . . . . . . . . Scan Component 1 | . . . . . . . . . . . . . . . . 1 . . . . . . . . . . . . . . . . . Repair 1 | . . . . . . . . . . . . . . . . 1 . . . . . . . . . . . . . . . . . Recycling Unit Hacks . | . . . . . . . . . . . . . . . . . . . . . . . . . . . . . . . . . . Scanalyzer . | . . . . . . . . . . . . . . . . . . . . . . . . . . . . . . . . . . Garrison Access Hacks 6 | . . . . . 1 . . . . . 1 . . . 1 . . . . . . . . . . 2 . . . . 1 . . Seal Access 6 | . . . . . 1 . . . . . 1 . . . 1 . . . . . . . . . . 2 . . . . 1 . . Unauthorized Hacks 45 | . 4 . 4 . 5 1 . . . . 5 1 . . 3 5 . . . . 1 . . . . . 4 . 2 6 2 2 . Terminals 45 | . 4 . 4 . 5 1 . . . . 5 1 . . 3 5 . . . . 1 . . . . . 4 . 2 6 2 2 . Botnet 45 | . 4 . 4 . 5 1 . . . . 5 1 . . 3 5 . . . . 1 . . . . . 4 . 2 6 2 2 . Fabricators . | . . . . . . . . . . . . . . . . . . . . . . . . . . . . . . . . . . Repair Stations . | . . . . . . . . . . . . . . . . . . . . . . . . . . . . . . . . . . Recycling Units . | . . . . . . . . . . . . . . . . . . . . . . . . . . . . . . . . . . Scanalyzers . | . . . . . . . . . . . . . . . . . . . . . . . . . . . . . . . . . . Garrison Access . | . . . . . . . . . . . . . . . . . . . . . . . . . . . . . . . . . . Data Cores Recovered 5 | . . . . . . . . . . . 1 . . . 1 2 . . . . . . . . . . . . . . . 1 . Used 3 | . . . . . . . . . . . 1 . . . . 1 . . . . . . . . . . . . . . . 1 . Hacking Detections 52 | . 4 . 4 . 5 2 . . . . 6 2 1 . 3 6 . . . . 1 . . . . . 4 . 1 7 2 4 . Full Trace Events 5 | . . . . . . . . . . . 1 . 1 . . 1 . . . . . . . . . . 1 . . . . 1 . Feedback Events . | . . . . . . . . . . . . . . . . . . . . . . . . . . . . . . . . . . Feedback Blocked . | . . . . . . . . . . . . . . . . . . . . . . . . . . . . . . . . . . Robot Schematics Acquired 3 | . . . . . . . . . 3 . . . . . . . . . . . . . . . . . . . . . . . . Robots Built . | . . . . . . . . . . . . . . . . . . . . . . . . . . . . . . . . . . Authchips . | . . . . . . . . . . . . . . . . . . . . . . . . . . . . . . . . . . Time . | . . . . . . . . . . . . . . . . . . . . . . . . . . . . . . . . . . Total Robot Build Rating . | . . . . . . . . . . . . . . . . . . . . . . . . . . . . . . . . . . Part Schematics Acquired 20 | . . . . . . . . . 16 . . . . . . . . . . . . . . 4 . . . . . . . . . Parts Built . | . . . . . . . . . . . . . . . . . . . . . . . . . . . . . . . . . . Authchips . | . . . . . . . . . . . . . . . . . . . . . . . . . . . . . . . . . . Time . | . . . . . . . . . . . . . . . . . . . . . . . . . . . . . . . . . . Total Part Build Rating . | . . . . . . . . . . . . . . . . . . . . . . . . . . . . . . . . . . Parts Repaired 1 | . . . . . . . . . . . . . . . . 1 . . . . . . . . . . . . . . . . . Time 51 | . . . . . . . . . . . . . . . . 51 . . . . . . . . . . . . . . . . . Parts Recycled . | . . . . . . . . . . . . . . . . . . . . . . . . . . . . . . . . . . Recycled Matter . | . . . . . . . . . . . . . . . . . . . . . . . . . . . . . . . . . . Retrieved Matter . | . . . . . . . . . . . . . . . . . . . . . . . . . . . . . . . . . . Retrieved Components . | . . . . . . . . . . . . . . . . . . . . . . . . . . . . . . . . . . Parts Scanalyzed . | . . . . . . . . . . . . . . . . . . . . . . . . . . . . . . . . . . Part Schematics Acquired . | . . . . . . . . . . . . . . . . . . . . . . . . . . . . . . . . . . Parts Damaged . | . . . . . . . . . . . . . . . . . . . . . . . . . . . . . . . . . . Bothacking | -11 -10 -10 -9 -9 -8 -7 -7 -7 -7 -6 -6 -6 -6 -6 -6 -5 -5 -5 -5 -4 -4 -4 -4 -4 -3 -3 -3 -3 -2 -2 -1 -1 -1 ------------ Run | Scr Mat Min Mat Min Mat Fac Low Low Zio Pro Fac Ext Cet Arc Hub Fac Upp Upp War Pro Fac Upp Upp Zhi Pro Res Arm Lab Res Tes Acc Com Ac0 Used RIF Installer . | . . . . . . . . . . . . . . . . . . . . . . . . . . . . . . . . . . Robots Hacked . | . . . . . . . . . . . . . . . . . . . . . . . . . . . . . . . . . . Non-combat . | . . . . . . . . . . . . . . . . . . . . . . . . . . . . . . . . . . Combat . | . . . . . . . . . . . . . . . . . . . . . . . . . . . . . . . . . . Robot Hacks Applied . | . . . . . . . . . . . . . . . . . . . . . . . . . . . . . . . . . . Relay Couplers Released 5 | . . . . . . . . . . . . . . . . . . . . . . . . . . 1 . . 2 2 . . . Machine Destruction 1 | . . . . . . . . . . . . . . . . . . . . . . . . . . 1 . . . . . . . Programmers 4 | . . . . . . . . . . . . . . . . . . . . . . . . . . . . . 2 2 . . . Fabnet Peak Effective % . | . . . . . . . . . . . . . . . . . . . . . . . . . . . . . . . . . . Robots Rewired . | . . . . . . . . . . . . . . . . . . . . . . . . . . . . . . . . . . Allies Hacked . | . . . . . . . . . . . . . . . . . . . . . . . . . . . . . . . . . . Hacks Repelled 1 | . . . . . . . . . . . . . . . . . . . . . . . . . . . . . . . . 1 . Allies | -11 -10 -10 -9 -9 -8 -7 -7 -7 -7 -6 -6 -6 -6 -6 -6 -5 -5 -5 -5 -4 -4 -4 -4 -4 -3 -3 -3 -3 -2 -2 -1 -1 -1 -------- Run | Scr Mat Min Mat Min Mat Fac Low Low Zio Pro Fac Ext Cet Arc Hub Fac Upp Upp War Pro Fac Upp Upp Zhi Pro Res Arm Lab Res Tes Acc Com Ac0 Total Allies 23 | . . . . 3 . . . . . . . 9 5 . . . . . . . . . . . . . . . . . 3 3 . Largest Group 8 | . . . . 3 . . . . . . . 5 8 6 6 . . . . . . . . . . . . . . . 3 3 . Highest-Rated Group 662 | . . . . 40 . . . . . . . 273 662 446 446 . . . . . . . . . . . . . . . 374 372 . Highest-Rated Ally 159 | . . . . 16 . . . . . . . 159 152 96 96 . . . . . . . . . . . . . . . 131 131 . Total Orders 1 | . . . . . . . . . . . . . . . . . . . 1 . . . . . . . . . . . . . . RETURN 1 | . . . . . . . . . . . . . . . . . . . 1 . . . . . . . . . . . . . . Ally Attacks 267 | . . . . 17 . . . . . . . 129 66 11 11 . . . . . . . . . . . . . . . 31 2 . Total Damage 7721 | . . . . 194 . . . . . . . 3193 1874 477 434 . . . . . . . . . . . . . . . 1497 52 . Kills 47 | . . . . 7 . . . . . . . 14 13 3 2 . . . . . . . . . . . . . . . 7 1 . Allies Corrupted 3 | . . . . . . . . . . . . . . . 3 . . . . . . . . . . . . . . . . . . Allies Melted 1 | . . . . . . . . . . . . . . . . . . . 1 . . . . . . . . . . . . . . Intel | -11 -10 -10 -9 -9 -8 -7 -7 -7 -7 -6 -6 -6 -6 -6 -6 -5 -5 -5 -5 -4 -4 -4 -4 -4 -3 -3 -3 -3 -2 -2 -1 -1 -1 ------- Run | Scr Mat Min Mat Min Mat Fac Low Low Zio Pro Fac Ext Cet Arc Hub Fac Upp Upp War Pro Fac Upp Upp Zhi Pro Res Arm Lab Res Tes Acc Com Ac0 Robot Analysis Total 4 | . . . . . . . . . . . . . . . . . . . . . . . . 4 . . . . . . . . . Derelict Logs Recovered 11 | . . 1 . 1 . . 1 1 1 3 . . . . . . 1 1 . 1 . . . . . . . . . . . . . Drone Launches 1 | . . . . . . . . . . . . . . . . . . . 1 . . . . . . . . . . . . . . Drone Recoveries 1 | . . . . . . . . . . . . . . . . . . . 1 . . . . . . . . . . . . . . Exploration | -11 -10 -10 -9 -9 -8 -7 -7 -7 -7 -6 -6 -6 -6 -6 -6 -5 -5 -5 -5 -4 -4 -4 -4 -4 -3 -3 -3 -3 -2 -2 -1 -1 -1 ------------- Run | Scr Mat Min Mat Min Mat Fac Low Low Zio Pro Fac Ext Cet Arc Hub Fac Upp Upp War Pro Fac Upp Upp Zhi Pro Res Arm Lab Res Tes Acc Com Ac0 Turns Passed 24506 | 60 556 379 1529 361 971 851 375 647 1242 481 1242 884 517 89 588 2089 261 428 534 444 363 426 387 275 916 831 1383 431 595 1549 491 2097 234 Spaces Moved 16307 | 43 334 252 843 238 590 543 300 492 1029 368 837 453 326 38 441 1488 208 368 478 366 280 348 320 150 489 721 772 280 365 852 327 1234 134 Core 6 | 6 . . . . . . . . . . . . . . . . . . . . . . . . . . . . . . . . . Treads . | . . . . . . . . . . . . . . . . . . . . . . . . . . . . . . . . . . Legs 16301 | 37 334 252 843 238 590 543 300 492 1029 368 837 453 326 38 441 1488 208 368 478 366 280 348 320 150 489 721 772 280 365 852 327 1234 134 Wheels . | . . . . . . . . . . . . . . . . . . . . . . . . . . . . . . . . . . Hover . | . . . . . . . . . . . . . . . . . . . . . . . . . . . . . . . . . . Flight . | . . . . . . . . . . . . . . . . . . . . . . . . . . . . . . . . . . Fastest Speed 50 | 50 120 120 120 120 120 120 120 120 120 120 120 120 120 120 106 100 100 100 100 100 100 100 100 170 170 100 100 120 120 120 120 97 97 Average Speed 117 | 113 120 120 136 124 120 120 120 120 120 120 120 120 120 120 111 101 100 100 101 100 100 100 120 170 170 104 116 127 120 120 120 120 102 Slowest Speed 190 | 120 120 120 190 190 120 120 120 120 120 120 120 120 120 120 180 106 100 100 170 100 100 100 170 170 170 170 190 190 120 120 120 183 174 Overloaded Moves . | . . . . . . . . . . . . . . . . . . . . . . . . . . . . . . . . . . Propulsion Burnouts . | . . . . . . . . . . . . . . . . . . . . . . . . . . . . . . . . . . Robots Hopped 3 | . . . . . . . . . 2 . . . 1 . . . . . . . . . . . . . . . . . . . . Cave-ins Triggered . | . . . . . . . . . . . . . . . . . . . . . . . . . . . . . . . . . . Teleports 2 | . . . . . . . . . . . . . . . . . . . . . . . . . . . . 1 . . . 1 . Exploration Rate (%) 52 | 3 64 80 78 52 62 18 58 73 80 52 31 70 64 65 42 49 46 65 70 57 10 61 51 60 75 21 58 99 18 91 10 39 9 Regions Visited 33 Branch Regions 23 Pre-discovered Areas 6 | . . . . . . . . 1 1 1 . . . . . . . . . . . . . 3 . . . . . . . . . Known Exits Taken 10 | . . . . . . 1 . . . . . . . . . 1 . 1 . 1 1 . . . . 1 1 1 1 . 1 . . Unknown Exits Taken 23 | 1 1 1 1 1 1 . 1 1 1 1 1 1 1 1 1 . 1 . 1 . . 1 1 1 1 . . . . 1 . 1 . Scrap Searched 21 | . . 1 . 1 . . 1 10 3 1 . . . . . . . 2 . . . 1 . . 1 . . . . . . . . Spaces Dug 27 | . . . . . . . . . . . . . . . . . . . . . . . . . . . 19 1 . . 6 1 . Terrain Destroyed 968 | . . . . . . . . . . . 2 41 5 . 350 57 10 14 . 14 66 22 . . 18 9 89 1 39 102 17 94 18 Melee . | . . . . . . . . . . . . . . . . . . . . . . . . . . . . . . . . . . Projectile 581 | . . . . . . . . . . . 2 41 5 . 13 57 10 14 . 14 16 22 . . 18 9 89 1 39 102 17 94 18 AOE 387 | . . . . . . . . . . . . . . . 337 . . . . . 50 . . . . . . . . . . . . Terrain Rammed . | . . . . . . . . . . . . . . . . . . . . . . . . . . . . . . . . . . Walls Destroyed . | . . . . . . . . . . . . . . . . . . . . . . . . . . . . . . . . . . Machines Disabled . | . . . . . . . . . . . . . . . . . . . . . . . . . . . . . . . . . . Actions | -11 -10 -10 -9 -9 -8 -7 -7 -7 -7 -6 -6 -6 -6 -6 -6 -5 -5 -5 -5 -4 -4 -4 -4 -4 -3 -3 -3 -3 -2 -2 -1 -1 -1 --------- Run | Scr Mat Min Mat Min Mat Fac Low Low Zio Pro Fac Ext Cet Arc Hub Fac Upp Upp War Pro Fac Upp Upp Zhi Pro Res Arm Lab Res Tes Acc Com Ac0 Total 19363 | 49 412 301 1034 275 723 656 306 524 1028 384 948 599 393 71 501 1815 234 403 523 410 313 383 322 158 527 766 1105 337 459 1209 389 1622 184 Wait 715 | . 10 14 37 5 16 27 . . . . 23 13 13 22 16 89 6 9 7 10 6 3 . . 7 3 155 7 19 104 7 80 7 Move 16268 | 42 333 251 842 237 589 542 299 491 1024 367 836 452 323 37 440 1487 207 367 477 365 279 347 319 149 488 720 771 279 364 851 326 1233 134 Hop 3 | . . . . . . . . . 2 . . . 1 . . . . . . . . . . . . . . . . . . . . Pick Up 53 | 1 4 . 4 2 1 5 . . . . 3 7 1 . . 8 . 2 1 1 . . . 3 . 3 1 . . 2 . 4 . Fast Attach 139 | 5 3 3 5 2 5 4 2 1 . 1 2 5 6 . 5 5 . 2 17 . . . 2 . . 1 16 16 4 5 2 19 1 Attach 13 | . 1 . . . . 1 . . . . 1 . . . . 2 . . 1 1 . . . 1 . . 1 . . 2 . 2 . Detach 4 | . . . . . . . . . . . . . . . . 1 . . 1 . . . . . . . . . . . . 1 1 Swap 48 | . . 2 4 . 3 5 . . . . 6 . 1 . 2 4 . . . . . . . 1 . 2 5 . . 9 . 4 . Drop 166 | . 3 6 12 . 7 8 2 2 . 4 6 9 7 1 7 11 . 1 17 2 . . 1 . . 3 11 15 3 5 1 20 2 Fire 937 | 1 39 14 83 11 53 38 3 8 2 8 40 55 19 4 12 90 9 8 2 12 17 14 . 4 16 12 71 13 32 79 19 116 33 Melee . | . . . . . . . . . . . . . . . . . . . . . . . . . . . . . . . . . . Ram . | . . . . . . . . . . . . . . . . . . . . . . . . . . . . . . . . . . Kick 8 | . . . . . . . . . . . . . . . . . . . . . . . . . . 1 . . . 1 . 6 . Crush . | . . . . . . . . . . . . . . . . . . . . . . . . . . . . . . . . . . Escape Stasis . | . . . . . . . . . . . . . . . . . . . . . . . . . . . . . . . . . . Rewire . | . . . . . . . . . . . . . . . . . . . . . . . . . . . . . . . . . . Trap . | . . . . . . . . . . . . . . . . . . . . . . . . . . . . . . . . . . Miscellaneous 1009 | . 19 11 47 18 49 26 . 22 . 4 31 58 22 7 19 118 12 14 . 19 11 19 . . 16 21 74 7 37 151 34 137 6 Route ------- -11/Scrapyard -10/Materials (discovered 2 exits: *Mat / [*Min]) -10/Mines (discovered 2 exits: *Mat x2) -9/Materials (discovered 4 exits: *Mat / *Min x2 / [*Sto]) -9/Mines -8/Materials (discovered 2 exits: *Fac x2) -7/Factory -7/Lower Caves -7/Lower Caves -7/Zion -6/Proximity Caves -6/Factory (discovered 3 exits: *Low x2 / *Ext) -6/Extension (discovered 2 exits: *Fac / *Cet) -6/Cetus (discovered 3 exits: *Fac x2 / [*Arc]) -6/Archives -6/Hub_04(d) -5/Factory (discovered 5 exits: *Fac x3 / *Upp x2) -5/Upper Caves -5/Upper Caves (discovered 2 exits: *Fac / *War) -5/Warlord -4/Proximity Caves -4/Factory -4/Upper Caves -4/Upper Caves (discovered 2 exits: *Res / *Zhi) -4/Zhirov -3/Proximity Caves -3/Research (discovered 3 exits: *Res / *Arm / Qua) -3/Armory (discovered 3 exits: *Res x2 / *Lab) -3/Lab -2/Research (discovered 2 exits: *Tes x2) -2/Testing -1/Access (discovered 2 exits: Sur / *Com) -1/Command (discovered 3 exits: Sur x2 / [*Ac0]) -1/Access_0 History --------- Turn | Location | Event 5 | -11/Scrapyard | Upgraded with Propulsion slot (x1) 5 | -11/Scrapyard | Upgraded with Utility slot (x1) 5 | -11/Scrapyard | Upgraded with Weapon slot (x1) 6 | -11/Scrapyard | Discovered new exit (range 16) 61 | -11/Scrapyard | Entered Materials 309 | -10/Materials | Build established: Mutant 357 | -10/Materials | Discovered new exit (range 14) 586 | -10/Materials | Discovered new exit (range 6) 617 | -10/Materials | Entered Mines 619 | -10/Mines | Reached level 2 695 | -10/Mines | Assembled infested the area 715 | -10/Mines | Discovered new exit (range 15) 790 | -10/Mines | Learned Materials terminal intel 850 | -10/Mines | Upgraded with Weapon slot (x1) 947 | -10/Mines | Discovered new exit (range 4) 996 | -10/Mines | Entered Materials 997 | -9/Materials | Loaded intel: 12 terminal locations 998 | -9/Materials | Reached level 3 1078 | -9/Materials | Discovered new exit (range 10) 1123 | -9/Materials | Core integrity fell below 50% 1126 | -9/Materials | Reached level 4 1133 | -9/Materials | Build established: Scavenger-Gunner 1604 | -9/Materials | Reached level 5 1670 | -9/Materials | Discovered new exit (range 8) 1724 | -9/Materials | Upgraded with Propulsion slot (x1) 1724 | -9/Materials | Upgraded with Utility slot (x1) 1724 | -9/Materials | Upgraded with Weapon slot (x1) 1770 | -9/Materials | Discovered new exit (range 3) 1999 | -9/Materials | Discovered new exit (range 11) 2150 | -9/Materials | Reached level 6 2525 | -9/Materials | Entered Mines 2527 | -9/Mines | Assisted by bots powering up and referring to "LRC-V3" 2532 | -9/Mines | Reached level 7 2747 | -9/Mines | Found the Drone Emporium 2807 | -9/Mines | Reached level 8 2881 | -9/Mines | Discovered new exit (range 3) 2886 | -9/Mines | Entered Materials 2888 | -8/Materials | Reached level 9 3024 | -8/Materials | Discovered new exit (range 16) 3189 | -8/Materials | Reached level 10 3286 | -8/Materials | First assault squad dispatched 3429 | -8/Materials | Discovered new exit (range 16) 3528 | -8/Materials | Reached level 11 3576 | -8/Materials | Build established: Gunner 3771 | -8/Materials | Destroyed 7 combat bots 3857 | -8/Materials | Entered Factory 3859 | -7/Factory | Reached level 12 4283 | -7/Factory | Reached level 13 4650 | -7/Factory | Discovered new exit (range 15) 4671 | -7/Factory | Identified exit to Lower Caves 4708 | -7/Factory | Entered Lower Caves 4710 | -7/Lower Caves | Reached level 14 4735 | -7/Lower Caves | Learned Factory garrison access intel 4924 | -7/Lower Caves | Encountered a Warlord checkpoint 5066 | -7/Lower Caves | Discovered new exit (range 13) 5083 | -7/Lower Caves | Entered another Lower Caves area 5448 | -7/Lower Caves | Spotted B-75 Beast 5514 | -7/Lower Caves | Encountered a Warlord checkpoint 5599 | -7/Lower Caves | Destroyed B-75 Beast 5653 | -7/Lower Caves | Learned location of Extension (-6) 5690 | -7/Lower Caves | Discovered new exit (range 8) 5695 | -7/Lower Caves | Attracted the attention of an 0b10 checkpoint 5730 | -7/Lower Caves | Entered Zion 5780 | -7/Zion | System corruption cleaned by Quarantine Array 5841 | -7/Zion | Discovered new exit (range 14) 5964 | -7/Zion | Learned location of Quarantine (-3) 6055 | -7/Zion | Visited the Megawrench Repair Shop 6055 | -7/Zion | Megawrench repaired 2 parts 6126 | -7/Zion | Given the Hacking Drone Bay 6199 | -7/Zion | Learned Factory repair station intel 6409 | -7/Zion | Learned Factory trap positions 6972 | -7/Zion | Entered Proximity Caves 6974 | -6/Proximity Caves | Reached level 15 7105 | -6/Proximity Caves | Learned Factory garrison access intel 7256 | -6/Proximity Caves | Spotted B-75 Beast 7270 | -6/Proximity Caves | Core integrity fell below 50% 7271 | -6/Proximity Caves | Reached level 16 7271 | -6/Proximity Caves | Destroyed B-75 Beast 7440 | -6/Proximity Caves | Discovered new exit (range 11) 7453 | -6/Proximity Caves | Entered Factory 7454 | -6/Factory | Identified exit to Lower Caves 7454 | -6/Factory | Core integrity fell below 50% 7455 | -6/Factory | Loaded intel: 101 trap records 7455 | -6/Factory | Reached level 17 7456 | -6/Factory | Loaded intel: 6 repair station locations 7457 | -6/Factory | Loaded intel: 3 garrison access locations 7607 | -6/Factory | Upgraded with Utility slot (x1) 7657 | -6/Factory | Upgraded with Utility slot (x1) 7657 | -6/Factory | Upgraded with Weapon slot (x2) 8195 | -6/Factory | Discovered exit to Lower Caves (range 5) 8262 | -6/Factory | Reached level 18 8585 | -6/Factory | Discovered new exit (range 6) 8695 | -6/Factory | Entered Extension 8735 | -6/Extension | Rescued a captive Derelict 8795 | -6/Extension | Disrupted transfer network 8800 | -6/Extension | Reached level 19 8846 | -6/Extension | Destroyed 12 combat bots 8890 | -6/Extension | Rescued a captive Derelict 9045 | -6/Extension | First assault squad dispatched 9060 | -6/Extension | Rescued A7 9104 | -6/Extension | Rescued a captive Derelict 9105 | -6/Extension | Rescued a captive Derelict 9121 | -6/Extension | Build established: Derelict-Executioner 9164 | -6/Extension | Reached level 20 9198 | -6/Extension | Destroyed 12 combat bots 9208 | -6/Extension | Spotted B-75 Beast 9213 | -6/Extension | Spotted B-75 Beast 9225 | -6/Extension | Destroyed B-75 Beast 9226 | -6/Extension | Destroyed B-75 Beast 9279 | -6/Extension | Rescued a captive Derelict 9281 | -6/Extension | Rescued a captive Derelict 9367 | -6/Extension | Rescued a captive Derelict 9391 | -6/Extension | Rescued a captive Derelict 9501 | -6/Extension | Destroyed 7 combat bots 9567 | -6/Extension | Discovered new exit (range 10) 9568 | -6/Extension | Discovered new exit (range 6) 9579 | -6/Extension | Entered Cetus 9579 | -6/Cetus | Accompanied by 3 allies (A7) 9584 | -6/Cetus | Acquired a Cetus Manufacturing Module code from A7 9596 | -6/Cetus | Spotted Cetus Guard 9596 | -6/Cetus | Spotted Cetus Guard 9599 | -6/Cetus | Spotted Cetus Guard 9603 | -6/Cetus | Allies destroyed Cetus Guard 9603 | -6/Cetus | Spotted Cetus Guard 9605 | -6/Cetus | Destroyed Cetus Guard 9606 | -6/Cetus | Allies destroyed Cetus Guard 9610 | -6/Cetus | Destroyed Cetus Guard 9682 | -6/Cetus | Discovered new exit (range 15) 9778 | -6/Cetus | Started Cetus Manufacturing Module 9792 | -6/Cetus | Reached level 21 9803 | -6/Cetus | Manufactured an Enhanced Grunt 9828 | -6/Cetus | Manufactured an Enhanced Grunt 9832 | -6/Cetus | Discovered new exit (range 16) 9853 | -6/Cetus | Manufactured an Enhanced Grunt 9865 | -6/Cetus | Spotted Cetus Guard 9865 | -6/Cetus | Spotted Cetus Guard 9867 | -6/Cetus | Spotted Cetus Guard 9872 | -6/Cetus | Destroyed Cetus Guard 9872 | -6/Cetus | Spotted Cetus Guard 9878 | -6/Cetus | Manufactured an Enhanced Grunt 9878 | -6/Cetus | Destroyed Cetus Guard 9880 | -6/Cetus | Allies destroyed Cetus Guard 9883 | -6/Cetus | Allies destroyed Cetus Guard 9885 | -6/Cetus | Discovered new exit (range 16) 9893 | -6/Cetus | Met Revision 17 9903 | -6/Cetus | Manufactured an Enhanced Grunt 9936 | -6/Cetus | Build established: Scavenger-Executioner 9989 | -6/Cetus | Destroyed A7 9995 | -6/Cetus | Extracted ID and sensor layout for unrecognized location from A7's data core 10096 | -6/Cetus | Entered Archives 10096 | -6/Archives | Accompanied by 6 allies 10139 | -6/Archives | Discovered new exit (range 15) 10185 | -6/Archives | Entered Hub_04(d) 10185 | -6/Hub_04(d) | Accompanied by 6 allies 10191 | -6/Hub_04(d) | Discovered new exit (range 16) 10333 | -6/Hub_04(d) | Network Hub disabled 10385 | -6/Hub_04(d) | Spotted Lightning 10388 | -6/Hub_04(d) | Spotted Lightning 10390 | -6/Hub_04(d) | Spotted Lightning 10391 | -6/Hub_04(d) | Destroyed Lightning 10400 | -6/Hub_04(d) | Destroyed Lightning 10425 | -6/Hub_04(d) | Upgraded with Utility slot (x1) 10425 | -6/Hub_04(d) | Found Prototype Device 10425 | -6/Hub_04(d) | Identified Exp. Phase Shifter 10437 | -6/Hub_04(d) | Destroyed Lightning 10456 | -6/Hub_04(d) | Found Prototype Device 10456 | -6/Hub_04(d) | Identified Exp. EM Disruption Field 10561 | -6/Hub_04(d) | Network Hub disabled 10720 | -6/Hub_04(d) | Spotted Lightning 10773 | -6/Hub_04(d) | Entered Factory 10774 | -5/Factory | Loaded intel: 4 garrison access locations 10775 | -5/Factory | Reached level 22 10842 | -5/Factory | Garrison activated, responded to threat 10889 | -5/Factory | Core integrity fell below 50% 10897 | -5/Factory | Core integrity fell below 20% 11033 | -5/Factory | Repaired Broken Quantum Reactor 11306 | -5/Factory | Destroyed 7 combat bots 11345 | -5/Factory | Discovered new exit (range 4) 11584 | -5/Factory | Reached level 23 11794 | -5/Factory | Discovered new exit (range 12) 11821 | -5/Factory | Identified exit to Factory 12136 | -5/Factory | Discovered exit to Factory (range 14) 12423 | -5/Factory | Spotted B-75 Beast 12439 | -5/Factory | Destroyed B-75 Beast 12573 | -5/Factory | First assault squad dispatched 12605 | -5/Factory | Identified exit to Upper Caves 12820 | -5/Factory | Destroyed 8 combat bots 12862 | -5/Factory | Entered Upper Caves 12942 | -5/Upper Caves | Spotted B-75 Beast 12961 | -5/Upper Caves | Destroyed B-75 Beast 13111 | -5/Upper Caves | Discovered new exit (range 12) 13123 | -5/Upper Caves | Entered another Upper Caves area 13123 | -5/Upper Caves | Reached level 24 13123 | -5/Upper Caves | Discovered exit to Factory (range 10) 13124 | -5/Upper Caves | Identified exit to Warlord 13147 | -5/Upper Caves | Upgraded with Utility slot (x2) 13147 | -5/Upper Caves | Upgraded with Weapon slot (x1) 13551 | -5/Upper Caves | Entered Warlord 13657 | -5/Warlord | Visited the Vortex Lab 13673 | -5/Warlord | Warlord's base attacked by MAIN.C 13773 | -5/Warlord | Met Warlord 13787 | -5/Warlord | Found Prototype Device 13787 | -5/Warlord | Identified Wardrone Bay 13876 | -5/Warlord | Found Prototype Hackware 13876 | -5/Warlord | Identified Ghost Barrier 13882 | -5/Warlord | Found Prototype Processor 13882 | -5/Warlord | Identified Exp. Target Analyzer 13888 | -5/Warlord | Found Prototype Device 13888 | -5/Warlord | Identified Exp. Cloaking Device 13895 | -5/Warlord | Found Prototype Reactor 13990 | -5/Warlord | Spotted B-86 Titan 13991 | -5/Warlord | Spotted B-75 Beast 14023 | -5/Warlord | Warlord forces counterattacked 14057 | -5/Warlord | Opened side exit 14077 | -5/Warlord | Discovered new exit (range 10) 14085 | -5/Warlord | Entered Proximity Caves 14289 | -4/Proximity Caves | Attracted the attention of an 0b10 base 14324 | -4/Proximity Caves | Reached level 25 14331 | -4/Proximity Caves | Upgraded with Power slot (x1) 14332 | -4/Proximity Caves | Identified Vortex Chain Reactor 14345 | -4/Proximity Caves | Destroyed 7 combat bots 14519 | -4/Proximity Caves | Discovered exit to Factory (range 9) 14529 | -4/Proximity Caves | Entered Factory 14530 | -4/Factory | Identified exit to Upper Caves 14779 | -4/Factory | First assault squad dispatched 14857 | -4/Factory | Garrison activated, responded to threat 14892 | -4/Factory | Entered Upper Caves 14904 | -4/Upper Caves | Spotted B-86 Titan 14915 | -4/Upper Caves | Destroyed B-86 Titan 14955 | -4/Upper Caves | Attracted the attention of an 0b10 outpost 14969 | -4/Upper Caves | Reached level 26 15007 | -4/Upper Caves | Destroyed 9 combat bots 15304 | -4/Upper Caves | Discovered new exit (range 13) 15318 | -4/Upper Caves | Entered another Upper Caves area 15332 | -4/Upper Caves | Discovered new exit (range 7) 15546 | -4/Upper Caves | Upgraded with Utility slot (x1) 15695 | -4/Upper Caves | Discovered new exit (range 7) 15705 | -4/Upper Caves | Entered Zhirov 15705 | -4/Zhirov | Discovered new exit (range 3) 15736 | -4/Zhirov | Met Zhirov 15775 | -4/Zhirov | Learned location of Testing (-2) 15775 | -4/Zhirov | Learned location of Command (-1) 15785 | -4/Zhirov | Zhirov requested help retrieving the SGEMP Prototype 15811 | -4/Zhirov | Found Alien Artifact 15831 | -4/Zhirov | Found Alien Artifact 15832 | -4/Zhirov | Identified Integrated Dissipator 15832 | -4/Zhirov | Installed Integrated Dissipator, increased core heat dissipation (+20) 15980 | -4/Zhirov | Entered Proximity Caves 16013 | -3/Proximity Caves | Reached level 27 16254 | -3/Proximity Caves | Spotted B-86 Titan 16257 | -3/Proximity Caves | Destroyed B-86 Titan 16309 | -3/Proximity Caves | Attracted the attention of an 0b10 checkpoint 16872 | -3/Proximity Caves | Discovered new exit (range 12) 16896 | -3/Proximity Caves | Entered Research 16897 | -3/Research | Identified exit to Quarantine 16898 | -3/Research | Reached level 28 17016 | -3/Research | Discovered new exit (range 15) 17096 | -3/Research | Revision forces began assault on 0b10 17225 | -3/Research | Met up with Revision 17++ 17272 | -3/Research | Spotted B-86 Titan 17285 | -3/Research | Destroyed B-86 Titan 17596 | -3/Research | Research terminal network offline 17664 | -3/Research | Spotted B-86 Titan 17690 | -3/Research | Discovered new exit (range 14) 17709 | -3/Research | Identified exit to Armory 17727 | -3/Research | Entered Armory 17950 | -3/Armory | Reached level 29 18001 | -3/Armory | Spotted B-86 Titan 18005 | -3/Armory | Destroyed B-86 Titan 18227 | -3/Armory | First assault squad dispatched 18461 | -3/Armory | Identified exit to Research 18696 | -3/Armory | Build established: Hacker-Executioner 18713 | -3/Armory | Destroyed 8 combat bots 18998 | -3/Armory | Found Prototype Processor 18998 | -3/Armory | Identified Exp. Signal Interpreter 19102 | -3/Armory | Discovered new exit (range 6) 19109 | -3/Armory | Identified exit to Lab 19110 | -3/Armory | Entered Lab 19110 | -3/Lab | Discovered exit to Research (range 9) 19112 | -3/Lab | Reached level 30 19124 | -3/Lab | Hidden lab's door opened automatically 19124 | -3/Lab | Sensor layout match revealed 19125 | -3/Lab | Gained access to the hidden lab's interior 19125 | -3/Lab | Unable to decrypt terminal 19130 | -3/Lab | Unable to decrypt terminal 19159 | -3/Lab | Detected by scanners 19168 | -3/Lab | Confronted by A5 19176 | -3/Lab | Destroyed A5 19218 | -3/Lab | Found Alien Artifact 19218 | -3/Lab | Identified Transdimensional Reconstructor (x2) 19218 | -3/Lab | Warped through subspace 19256 | -3/Lab | Found Alien Artifact 19256 | -3/Lab | Identified Core Expander 19256 | -3/Lab | Installed Core Expander, added new Propulsion slot 19267 | -3/Lab | Found Alien Artifact 19267 | -3/Lab | Identified Integrated Mediator 19267 | -3/Lab | Installed Integrated Mediator, increased core attachment efficiency. 19308 | -3/Lab | Found Prototype Energy Gun 19308 | -3/Lab | Identified Hyp. EM Gauss Rifle 19318 | -3/Lab | Found Prototype Protection 19318 | -3/Lab | Identified Exp. Powered Armor 19322 | -3/Lab | Found Prototype Hackware 19322 | -3/Lab | Identified Quantum Router 19359 | -3/Lab | Found Prototype Special Weapon 19359 | -3/Lab | Identified Gui. Remote Datajack 19403 | -3/Lab | Found Prototype Energy Cannon 19403 | -3/Lab | Identified Warp Cannon 19437 | -3/Lab | Unable to decrypt terminal 19445 | -3/Lab | Unable to decrypt terminal 19446 | -3/Lab | Found Alien Artifact 19446 | -3/Lab | Identified LC Capacitor 19541 | -3/Lab | Entered Research 19541 | -2/Research | Warlord forces began assault on 0b10 19543 | -2/Research | Reached level 31 19587 | -2/Research | Identified exit to Testing 19651 | -2/Research | Research machine network offline 19803 | -2/Research | Spotted Executioner 19804 | -2/Research | Destroyed Executioner 19875 | -2/Research | Spotted Executioner 19888 | -2/Research | Destroyed Executioner 19909 | -2/Research | Found Prototype Processor 19909 | -2/Research | Identified Exp. Targeting Computer 19916 | -2/Research | Borebot progress halted 20087 | -2/Research | Borebot progress halted 20115 | -2/Research | Spotted B-90 Cyclops 20136 | -2/Research | Entered Testing 20138 | -2/Testing | Reached level 32 20151 | -2/Testing | Found Prototype Energy Cannon 20151 | -2/Testing | Identified Null Cannon 20152 | -2/Testing | Protovariant out of control (PP-B5Q0ZVEMAZ) 20179 | -2/Testing | Garrison activated, responded to threat 20242 | -2/Testing | Core integrity fell below 50% 20263 | -2/Testing | Destroyed 8 combat bots 20270 | -2/Testing | Spotted PP-B5Q0ZVEMAZ 20273 | -2/Testing | PP-B5Q0ZVEMAZ assimilated allied U-05 Engineer 20403 | -2/Testing | Garrison activated, responded to threat 20638 | -2/Testing | Discovered new exit (range 16) 20670 | -2/Testing | First assault squad dispatched 20730 | -2/Testing | Intercept squad dispatched 20734 | -2/Testing | Spotted Tracker 20737 | -2/Testing | Spotted Tracker 20738 | -2/Testing | Destroyed Tracker 20744 | -2/Testing | Reached level 33 20744 | -2/Testing | Destroyed Tracker 20746 | -2/Testing | Spotted Combat Programmer 20748 | -2/Testing | Spotted Combat Programmer 20753 | -2/Testing | Destroyed Combat Programmer 20964 | -2/Testing | Garrison activated, responded to threat 21000 | -2/Testing | Destroyed 7 combat bots 21153 | -2/Testing | Spotted Striker 21155 | -2/Testing | Spotted Striker 21281 | -2/Testing | Intercept squad dispatched 21287 | -2/Testing | Upgraded with Utility slot (x1) 21293 | -2/Testing | Spotted Tracker 21294 | -2/Testing | Spotted Tracker 21294 | -2/Testing | Spotted Tracker 21294 | -2/Testing | Destroyed Tracker 21301 | -2/Testing | Destroyed Tracker 21301 | -2/Testing | Destroyed Tracker 21314 | -2/Testing | Spotted Combat Programmer 21318 | -2/Testing | Destroyed Combat Programmer 21322 | -2/Testing | Spotted Combat Programmer 21322 | -2/Testing | Spotted Combat Programmer 21324 | -2/Testing | Destroyed Combat Programmer 21331 | -2/Testing | Destroyed Combat Programmer 21514 | -2/Testing | Destroyed Striker 21516 | -2/Testing | Spotted Alpha 7 21517 | -2/Testing | Destroyed Striker 21523 | -2/Testing | Destroyed Alpha 7 21551 | -2/Testing | Stole the SGEMP Prototype 21685 | -2/Testing | Entered Access 21686 | -1/Access | Loaded intel: 121 machine locations 21686 | -1/Access | Loaded intel: 71 trap records 21686 | -1/Access | Identified exit to Surface 21686 | -1/Access | Discovered exit to Surface (range 215) 21686 | -1/Access | Identified exit to Command 21686 | -1/Access | Discovered exit to Command (range 111) 21687 | -1/Access | Reached level 34 21687 | -1/Access | Delivered the SGEMP Prototype to Zhirov 21687 | -1/Access | Zhirov transferred Access data 21715 | -1/Access | Garrison activated, responded to threat 21752 | -1/Access | Spotted B-99 Colossus 21773 | -1/Access | Destroyed B-99 Colossus 21795 | -1/Access | Reached level 35 21967 | -1/Access | Spotted B-99 Colossus 21971 | -1/Access | Zhirov warped through subspace 21975 | -1/Access | Destroyed B-99 Colossus 22145 | -1/Access | Intercept squad dispatched 22171 | -1/Access | Spotted Tracker 22172 | -1/Access | Spotted Tracker 22176 | -1/Access | Entered Command 22466 | -1/Command | First assault squad dispatched 22496 | -1/Command | Reached level 36 22501 | -1/Command | Core integrity fell below 50% 23182 | -1/Command | Spotted B-99 Colossus 23234 | -1/Command | Disengaged cave seal 23234 | -1/Command | Derelicts emerged from the dark tunnel 23234 | -1/Command | Welcomed Warlord to Command 23290 | -1/Command | High security lockdown imminent 23370 | -1/Command | High security lockdown engaged 23384 | -1/Command | Warlord commented on Warlord statues 23390 | -1/Command | Spotted M Guard 23390 | -1/Command | Spotted M Guard 23391 | -1/Command | Spotted Combat Programmer 23391 | -1/Command | Spotted Combat Programmer 23395 | -1/Command | Destroyed Combat Programmer 23402 | -1/Command | Destroyed Combat Programmer 23423 | -1/Command | Destroyed M Guard 23426 | -1/Command | Destroyed M Guard 23426 | -1/Command | All MAIN.C guards destroyed 23429 | -1/Command | Spotted Striker 23475 | -1/Command | Destroyed 13 combat bots 23515 | -1/Command | Spotted Investigator 23515 | -1/Command | Destroyed Investigator 23560 | -1/Command | Destroyed 11 combat bots 23575 | -1/Command | Warlord destroyed during the assault 23635 | -1/Command | Reached level 37 23635 | -1/Command | Destroyed Striker 23679 | -1/Command | Met MAIN.C 23679 | -1/Command | 0b10 Conduit disabled 23689 | -1/Command | Spotted Striker 23698 | -1/Command | Spotted Striker 23703 | -1/Command | Destroyed MAIN.C Shell 23706 | -1/Command | MAIN.C activated Command garrisons 23711 | -1/Command | Allies destroyed Striker 23711 | -1/Command | Zhirov used SGEMP to disable MAIN.C 23919 | -1/Command | Discovered exit to Surface (range 40) 23919 | -1/Command | Discovered exit to Surface (range 101) 23919 | -1/Command | Extracted map data and part IDs from MAIN.C's data core 23929 | -1/Command | Found Omega Cannon 24223 | -1/Command | Found Adv. Kinecellerator 24243 | -1/Command | Found Exp. System Purifier 24268 | -1/Command | Warped through subspace to slip node 24268 | -1/Command | Discovered new exit (range 4) 24273 | -1/Command | Entered Access_0 24274 | -1/Access_0 | Met Architect 24288 | -1/Access_0 | Destroyed A8 24296 | -1/Access_0 | Architect warped through subspace 24356 | -1/Access_0 | Architect warped through subspace 24409 | -1/Access_0 | Architect warped through subspace 24507 | -1/Access_0 | Self-destructed Last Messages --------------- 24465_ Penetrated by Quantum Shear. 24471_ Quantum Shear penetrates Wall. 24476_ Penetrated by Quantum Shear. 24476_ Quantum Shear penetrates Wall. 24482_ Penetrated by Quantum Shear. 24482_ Architect knocked back. 24484_ Quantum Shear penetrates Wall. 24485_ Dropped Hvy. Hardcell Cannon. 24486_ Architect knocked back. 24487_ Quantum Shear penetrates Wall. 24488_ Architect suffers critical hit (Blast). 24488_ Destroyed Prototype Hackware. 24489_ Quantum Shear penetrates Wall. 24496_ Penetrated by Quantum Shear. 24499_ Architect regenerates Prototype Hackware. 24499_ Penetrated by Quantum Shear. 24499_ Architect knocked back. 24501_ Penetrated by Quantum Shear. 24506_ Architect suffers critical hit (Blast). 24506_ Destroyed Alien Energy Gun. Map ----- +----------------------------------------------------+ | ???????????????????????????????????????# " " | | ???????????????????????????????????????# " " | | ???????????????????????????????????????# " # " | | ?????????????????????? ##??????????????# "#### | | ????????????????????? ????????????## ## | | ????????????????????? ???????????# " | | ?????????????????????# #??????????#" " " | | ?????????????????????# ##????????## ""#" | | ?????????????????????# #????????# ###"" | | ????????????????????????# ######### ##?"" " | | ??????????????????????### ##"""" " | | ??????????????????? ####### | | ??????????????????????###### #### | | ??????????????????# # # ############## | | ?????????????????? """####""""#" | | ?????????????????????###;# ## | | ????????????????????## # ## | | ????????????????????# # ### | | ????????????????????# ## #?#" | | ????????????### ????## # #??" #""""""""" | | ????????????#; ???# #??# "### | | ???????????h #### #??#" "#??#### | | ??????????? ;;;; ;# ##??# "##????## | | ?????????????? ;;;; ;; ;#;## ###???? | | ????????????# # ;; #?## #???? | | ?????????? ;; ]@ 0#??# ##???? | | ?????????????# ######;;;;;;;;; %;### #????? | | ?????????????????????### ## ## % %%; ##????? | | ???????????????????????##??## """#????? | | ???????????????????????????# "# #????? | | ???????????????????????????##" "####????? | | ????????????????????????????#"# "" ## #??????? | | ????????????????????????????###" ### ###? #??????? | | ??????????????????????????????#" #?###??? #??????? | | ??????????????????????????????####????????#??????? | | ?????????????????????????????????????????????????? | | ?????????????????????????????????????????????????? | | ?????????????????????????????????????????????????? | | ?????????????????????????????????????????????????? | | ?????????????????????????????????????????????????? | | ?????????????????????????????????????????????????? | | ?????????????????????????????????????????????????? | | ?????????????????????????????????????????????????? | | ?????????????????????????????????????????????????? | | ?????????????????????????????????????????????????? | | ?????????????????????????????????????????????????? | | ?????????????????????????????????????????????????? | | ?????????????????????????????????????????????????? | | ?????????????????????????????????????????????????? | | ?????????????????????????????????????????????????? | +----------------------------------------------------+ Best States ------------- Heat Dissipation 185 Energy Generation 95 Energy Capacity 1650 Matter Stores 800 Matter Capacity 800 Sight Range 16 Robot Scan Range 18 Terrain Scan Density 10 Power Amplification 30 Armor Coverage 400 Resistance: KI 20 Resistance: TH 20 Resistance: EX 20 Resistance: EM 75 Weapon Cycling 25 Phase Shifting 20 Evasion (%) 75 Targeting Accuracy 12 Target Analysis 10 Armor Integrity Analysis 30 Particle Charging 25 Kinecelleration 50 Offensive Hacking 15 Defensive Hacking 45 Item Schematics ----------------- Gauss Cannon | -7/Zion | Archive Hvy. Plasma Cannon | -7/Zion | Archive Med. Insulated Plating | -7/Zion | Archive Mak. Hover Unit | -7/Zion | Archive Xenon Bombardment Thruster | -7/Zion | Archive Imp. Reaction Control System | -7/Zion | Archive Imp. Titanium Leg | -7/Zion | Archive Imp. Recalibrator | -7/Zion | Archive Adv. Cooling System | -7/Zion | Archive Armor Integrity Analyzer | -7/Zion | Archive Thermic Laser | -7/Zion | Archive Imp. Deuterium Engine | -7/Zion | Archive Energy Well | -7/Zion | Archive Phase Cannon | -7/Zion | Archive Imp. EM Pulse Cannon | -7/Zion | Archive Hvy. Mass Driver | -7/Zion | Archive Assault Drone Bay | -4/Zhirov | Free Exp. Heat Sink | -4/Zhirov | Free Imp. Arc Thrower | -4/Zhirov | Free Exp. Optical Array | -4/Zhirov | Free Robot Schematics ------------------ T-07 Excavator | -7/Zion | Archive M-14 Sweeper | -7/Zion | Archive Y-54 Guardian | -7/Zion | Archive Fabricated ------------ Nothing Alien Tech Used ----------------- Integrated Dissipator Transdimensional Reconstructor Core Expander Integrated Mediator LC Capacitor Achievements -------------- Behind The Curtain Revolutionary Research Challenges ------------ None RPGLIKE | -11 -10 -10 -9 -9 -8 -7 -7 -7 -7 -6 -6 -6 -6 -6 -6 -5 -5 -5 -5 -4 -4 -4 -4 -4 -3 -3 -3 -3 -2 -2 -1 -1 -1 --------- Run | Scr Mat Min Mat Min Mat Fac Low Low Zio Pro Fac Ext Cet Arc Hub Fac Upp Upp War Pro Fac Upp Upp Zhi Pro Res Arm Lab Res Tes Acc Com Ac0 Levels Raised 36 | . . 1 4 2 3 2 1 . . 2 2 2 1 . . 2 . 1 . 1 . 1 . . 1 1 1 1 1 2 2 2 . XP Earned 58463 | 3000 1155 1100 6201 2093 5326 3378 500 867 349 1600 3360 3580 992 238 586 2882 278 270 162 1139 1125 651 118 152 1626 1570 2157 970 2010 2571 2266 3572 619 XP Spent 56295 | 3000 . 1500 4400 . 5100 1000 . . . 2210 9600 . . . 1700 480 . 8225 . 500 . . 2600 . . 3000 1600 . . 2900 . 8480 . Upgrades 100 | 6 . 3 6 . 6 1 . . . 13 9 . . . 1 8 . 10 . 1 . . 1 . . 6 1 . . 1 . 27 . Power Slot 1 | . . . . . . . . . . . . . . . . . . . . 1 . . . . . . . . . . . . . Propulsion Slot 2 | 1 . . 1 . . . . . . . . . . . . . . . . . . . . . . . . . . . . . . Utility Slot 9 | 1 . . 1 . . . . . . . 2 . . . 1 . . 2 . . . . 1 . . . . . . 1 . . . Weapon Slot 6 | 1 . 1 1 . . . . . . . 2 . . . . . . 1 . . . . . . . . . . . . . . . Core Integrity 16 | . . . . . . . . . . . . . . . . 8 . . . . . . . . . . . . . . . 8 . Heat Dissipation 17 | . . . . . . . . . . 13 . . . . . . . . . . . . . . . . . . . . . 4 . Energy Generation 5 | . . . . . . . . . . . 5 . . . . . . . . . . . . . . . . . . . . . . Energy Storage 7 | . . . . . . . . . . . . . . . . . . 7 . . . . . . . . . . . . . . . Mass Support 4 | . . . . . . . . . . . . . . . . . . . . . . . . . . 3 1 . . . . . . Inventory Capacity 4 | 3 . . . . . 1 . . . . . . . . . . . . . . . . . . . . . . . . . . . Ranged Accuracy 7 | . . . 2 . 5 . . . . . . . . . . . . . . . . . . . . . . . . . . . . Hack Attack % 3 | . . . . . . . . . . . . . . . . . . . . . . . . . . 3 . . . . . . . KI Resistance % 4 | . . . . . . . . . . . . . . . . . . . . . . . . . . . . . . . . 4 . TH Resistance % 4 | . . . . . . . . . . . . . . . . . . . . . . . . . . . . . . . . 4 . EX Resistance % 4 | . . . . . . . . . . . . . . . . . . . . . . . . . . . . . . . . 4 . KI Damage % 3 | . . . . . . . . . . . . . . . . . . . . . . . . . . . . . . . . 3 . TH Damage % 4 | . . 2 1 . 1 . . . . . . . . . . . . . . . . . . . . . . . . . . . . Protomatter Created 10613 | . 135 78 407 9 451 277 . 98 . 26 325 869 346 73 142 953 88 124 . 308 163 195 . . 104 123 1184 67 500 1657 492 1371 48 Integrity Restored 21081 | . 403 234 987 372 944 521 . 462 . 78 687 1182 450 157 405 2430 250 241 . 374 178 393 . . 305 425 1460 143 756 3312 754 3034 144 Core 15008 | . 388 216 817 291 619 429 . 302 . 78 687 550 244 136 328 1521 155 148 . 273 126 318 . . 220 283 690 32 577 2628 373 2435 144 Parts 6073 | . 15 18 170 81 325 92 . 160 . . . 632 206 21 77 909 95 93 . 101 52 75 . . 85 142 770 111 179 684 381 599 . Protomatter Decayed 8873 | . . . 48 9 138 39 25 . . . 96 613 297 73 88 121 79 172 594 112 43 60 . . . 2020 728 19 1526 758 296 919 . Game ------ Seed CoolantTachyonShotgun Manual? 0 Play Time 03:44:30 Cumulative 110.7 hours Start 2022.04.26 @ 14:13:23 End 2022.04.29 @ 22:15:17 Sessions 7 Manual Loads 0 Difficulty Rogue Special Mode Winter2019/RPGLIKE Game No. 67 Rogue 28 Adventurer 5 Explorer 34 Win Type - Total 19 Types 10/0/4/4/1/0/0/0/0 Lore% 70 Gallery% 69 Achievement% 76 Wizard Run 0 Options --------- ASCII 0 Keyboard 0 Movement Mouse Keybinds 0 Fullscreen 1 Font 12/Terminus Map View 83x54 Tactical HUD 1 Map Filters NONE Filters NONE Steam 1 RUN: a3b5b1f7-74fc-49f5-b30d-a1ccb560726d